Workbook

Sheet Инструкция
AA1: (требуется обновление)
B2: ="Код шаблона: " & GetCode() -> Код шаблона: 46EP.STX
B3: ="Версия " & GetVersion() -> Версия 1.0
B5: Сведения об отпуске (передаче) электроэнергии распределительными сетевыми организациями отдельным категориям потребителей Приказ Росстата: Об утверждении формы от 05.09.2018 № 543
E7: • На рабочем месте должен быть установлен MS Office 2007 SP3, 2010, 2013, 2016 с полной версией MS Excel • Макросы во время работы должны быть включены (!) • Для корректной работы отчёта требуется выбрать низкий уровень безопасности (В меню MS Excel 2007/2010/2013/2016: Параметры Excel | Центр управления безопасностью | Параметры центра управления безопасностью | Параметры макросов | Включить все макросы | ОК) • Если Вы работаете в табличном процессоре MS Excel 2007 и выше, то можете использовать для работы формат XLSB (Двоичная книга Excel). При работе в формате XLSB заметно быстрее происходит сохранение файла, а также уменьшается размер по сравнению с форматами XLS и XLSM • Не рекомендуется снимать защиту с листов и каким-либо образом модифицировать защищаемые формулы и расчётные поля, в противном случае, отчёт будет отклонён системой • При сохранении не следует выбирать формат XLSX (Книга Excel), так как в указанном формате макросы, необходимые для работы отчёта, безвозвратно удаляются
E21: A | F21: - предназначенные для заполнения | O21: A | P21: - обязательные для заполнения поля
E22: A | F22: - с формулами и константами | O22: A | P22: - незаполняемые поля
E23: A | F23: - с выбором значений по двойному клику
E35: Если в предложенном Вам списке необходимая организация, МР/МО отсутствуют, обновите реестры с помощью кнопок В результате синхронизации с базой данных список организаций (МР/МО) будет заменён актуальным (механизм синхронизации требует подключения к сети Интернет и основан на использовании протокола HTTPS (TCP порт 443)) Если после обновления Вам не удалось найти необходимую организацию в списке, обратитесь к ответственному за поддержание реестра Вашего региона.
E46: • При сохранении шаблона осуществляется проверка корректности данных, в том числе на наличие значений в ячейках, обязательных для заполнения • Если какая-то ячейка не удовлетворяет условию проверки, на лист «Проверка» добавляется гиперссылка на данную ячейку и указывается причина ошибки • В колонке «Статус» для каждого сообщения возможны 2 значения: ошибка и предупреждение • При наличии сообщений со статусом «Ошибка» шаблон будет отклонён системой и не будет загружен в хранилище данных, сообщения со статусом «Предупреждение» носят информационный характер, и такой шаблон будет принят системой
E59: Консультации: | K59: Обратиться за помощью
E60: Дистрибутивы: | K60: Перейти
E70: Общие указания по заполнению:
E71: Указания по заполнению формы федерального статистического наблюдения
E73: Если срок предоставления отчета истек, необходимо загрузить в систему пояснительную записку и указать ссылку на нее на листе "Титульный" в поле "Ссылка на обосновывающие материалы"
E76: Обосновывающие материалы необходимо загружать с помощью "ЕИАС Мониторинг":
E77: Руководство по загрузке документов
E79: Пример пояснительной записки:
E80: Пояснительная записка
E87: Отчётные формы: | K87: Перейти к разделу
E89: Контакты специалистов ЦА ФАС России:
E90: ФИО: | K90: Максим Николаевич Пальянов
E91: E-mail: | K91: palyanovmn@fas.gov.ru
E93: ФИО: | K93: Игорь Владиславович Бедрин
E94: E-mail: | K94: bedrin@fas.gov.ru
E103: При наличии подключения к Интернет, можно автоматически проверять наличие доступных обновлений. Выберите способ оповещения о наличии обновлений для отчёта:
F105: проверять доступные обновления (рекомендуется) | AA105: y
F107: никогда не проверять наличие обновлений (не рекомендуется)

Sheet Лог обновления (hidden)
A2: 3/17/2012 12:12:41 AM | B2: Дата/Время | C2: Сообщение | D2: Статус
B3: 2019-04-16T16:12:00 | C3: Проверка доступных обновлений... | D3: Информация
B4: 2019-04-16T16:12:02 | C4: Нет доступных обновлений для отчёта с кодом 46EP.STX! | D4: Информация
B5: 2019-04-16T16:13:49 | C5: Проверка доступных обновлений... | D5: Информация
B6: 2019-04-16T16:13:50 | C6: Нет доступных обновлений для отчёта с кодом 46EP.STX! | D6: Информация
B7: 2019-04-16T16:14:10 | C7: Проверка доступных обновлений... | D7: Информация
B8: 2019-04-16T16:14:11 | C8: Нет доступных обновлений для отчёта с кодом 46EP.STX! | D8: Информация
B9: 2019-04-16T16:21:21 | C9: Проверка доступных обновлений... | D9: Информация
B10: 2019-04-16T16:21:22 | C10: Нет доступных обновлений для отчёта с кодом 46EP.STX! | D10: Информация
B11: 2019-04-16T16:33:37 | C11: Проверка доступных обновлений... | D11: Информация
B12: 2019-04-16T16:33:38 | C12: Нет доступных обновлений для отчёта с кодом 46EP.STX! | D12: Информация
B13: 2019-04-17T08:50:40 | C13: Проверка доступных обновлений... | D13: Информация
B14: 2019-04-17T08:50:41 | C14: Нет доступных обновлений для отчёта с кодом 46EP.STX! | D14: Информация
B15: 2019-06-14T09:38:12 | C15: Проверка доступных обновлений... | D15: Информация
B16: 2019-06-14T09:38:14 | C16: Нет доступных обновлений для отчёта с кодом 46EP.STX! | D16: Информация
B17: 2019-06-14T13:00:44 | C17: Проверка доступных обновлений... | D17: Информация
B18: 2019-06-14T13:00:45 | C18: Нет доступных обновлений для отчёта с кодом 46EP.STX! | D18: Информация
B19: 2019-06-14T15:14:46 | C19: Проверка доступных обновлений... | D19: Информация
B20: 2019-06-14T15:14:47 | C20: Нет доступных обновлений для отчёта с кодом 46EP.STX! | D20: Информация
B21: 2019-07-17T12:52:08 | C21: Проверка доступных обновлений... | D21: Информация
B22: 2019-07-17T12:52:10 | C22: Нет доступных обновлений для отчёта с кодом 46EP.STX! | D22: Информация
B23: 2019-07-19T14:37:07 | C23: Проверка доступных обновлений... | D23: Информация
B24: 2019-07-19T14:37:09 | C24: Нет доступных обновлений для отчёта с кодом 46EP.STX! | D24: Информация
B25: 2019-08-21T09:09:28 | C25: Проверка доступных обновлений... | D25: Информация
B26: 2019-08-21T09:09:30 | C26: Нет доступных обновлений для отчёта с кодом 46EP.STX! | D26: Информация
B27: 2019-08-21T09:32:15 | C27: Проверка доступных обновлений... | D27: Информация
B28: 2019-08-21T09:32:17 | C28: Нет доступных обновлений для отчёта с кодом 46EP.STX! | D28: Информация
B29: 2019-09-25T11:49:02 | C29: Проверка доступных обновлений... | D29: Информация
B30: 2019-09-25T11:49:06 | C30: Нет доступных обновлений для отчёта с кодом 46EP.STX! | D30: Информация
B31: 2019-09-25T12:19:41 | C31: Проверка доступных обновлений... | D31: Информация
B32: 2019-09-25T12:19:43 | C32: Нет доступных обновлений для отчёта с кодом 46EP.STX! | D32: Информация
B33: 2019-09-25T13:39:00 | C33: Проверка доступных обновлений... | D33: Информация
B34: 2019-09-25T13:39:01 | C34: Нет доступных обновлений для отчёта с кодом 46EP.STX! | D34: Информация
B35: 2019-10-22T13:11:47 | C35: Проверка доступных обновлений... | D35: Информация
B36: 2019-10-22T13:11:50 | C36: Нет доступных обновлений для отчёта с кодом 46EP.STX! | D36: Информация
B37: 2019-10-22T13:22:58 | C37: Проверка доступных обновлений... | D37: Информация
B38: 2019-10-22T13:22:59 | C38: Нет доступных обновлений для отчёта с кодом 46EP.STX! | D38: Информация
B39: 2019-10-22T16:17:02 | C39: Проверка доступных обновлений... | D39: Информация
B40: 2019-10-22T16:17:05 | C40: Нет доступных обновлений для отчёта с кодом 46EP.STX! | D40: Информация
B41: 2019-11-14T13:01:27 | C41: Проверка доступных обновлений... | D41: Информация
B42: 2019-11-14T13:01:30 | C42: Нет доступных обновлений для отчёта с кодом 46EP.STX! | D42: Информация
B43: 2019-11-14T13:55:06 | C43: Проверка доступных обновлений... | D43: Информация
B44: 2019-11-14T13:55:08 | C44: Нет доступных обновлений для отчёта с кодом 46EP.STX! | D44: Информация
B45: 2019-11-14T14:09:34 | C45: Проверка доступных обновлений... | D45: Информация
B46: 2019-11-14T14:09:35 | C46: Нет доступных обновлений для отчёта с кодом 46EP.STX! | D46: Информация
B47: 2019-11-14T14:37:29 | C47: Проверка доступных обновлений... | D47: Информация
B48: 2019-11-14T14:37:31 | C48: Нет доступных обновлений для отчёта с кодом 46EP.STX! | D48: Информация
B49: 2020-01-06T11:33:55 | C49: Проверка доступных обновлений... | D49: Информация
B50: 2020-01-06T11:33:57 | C50: Нет доступных обновлений для отчёта с кодом 46EP.STX! | D50: Информация
B51: 2020-01-29T11:53:01 | C51: Проверка доступных обновлений... | D51: Информация
B52: 2020-01-29T11:53:03 | C52: Нет доступных обновлений для отчёта с кодом 46EP.STX! | D52: Информация
B53: 2020-02-06T13:38:38 | C53: Проверка доступных обновлений... | D53: Информация
B54: 2020-02-06T13:38:42 | C54: Нет доступных обновлений для отчёта с кодом 46EP.STX! | D54: Информация
B55: 2020-02-06T15:51:47 | C55: Проверка доступных обновлений... | D55: Информация
B56: 2020-02-06T15:51:48 | C56: Нет доступных обновлений для отчёта с кодом 46EP.STX! | D56: Информация
B57: 2020-02-17T17:00:22 | C57: Проверка доступных обновлений... | D57: Информация
B58: 2020-02-17T17:00:24 | C58: Нет доступных обновлений для отчёта с кодом 46EP.STX! | D58: Информация
B59: 2020-02-17T17:24:52 | C59: Проверка доступных обновлений... | D59: Информация
B60: 2020-02-17T17:24:53 | C60: Нет доступных обновлений для отчёта с кодом 46EP.STX! | D60: Информация
B61: 2021-01-28T09:23:32 | C61: Проверка доступных обновлений... | D61: Информация
B62: 2021-01-28T09:23:34 | C62: Нет доступных обновлений для отчёта с кодом 46EP.STX! | D62: Информация

Sheet Титульный
G7: =version -> Версия 1.0
E8: Сведения об отпуске (передаче) электроэнергии распределительными сетевыми организациями отдельным категориям потребителей
F10: Субъект РФ | G10: Ярославская область
G11: Отчетный период
F12: Год | G12: 2020
F13: Месяц | G13: год
F15: Наименование организации | G15: ОАО "Рыбинская городская электросеть" | J15: 30919136
F16: ИНН | G16: 7610096000
F17: КПП | G17: 761001001
F18: Вид деятельности | G18: РСО
F20: Тип отчета | G20: В целом по организации
F21: Наименование обособленного подразделения
F23: ОКПО | G23: 03220274
F25: ОКАТО | G25: 78415000000
F27: Муниципальный район | G27: Рыбинский муниципальный район
F28: Муниципальное образование | G28: Рыбинский муниципальный район
F29: ОКТМО | G29: 78640000
F31: Котлодержатель | G31: Нет
F33: Плательщик НДС | G33: Да
G34: Адрес организации
F35: Юридический адрес: | G35: 152919 Ярославская обл., г.Рыбинск, ул.Щепкина, д.16
F36: Почтовый адрес: | G36: 152919 Ярославская обл., г.Рыбинск, ул.Щепкина, д.16
G37: Руководитель
F38: Фамилия, имя, отчество | G38: Асадов Рафик Рагибович
F39: (код) номер телефона | G39: (4955) 26-23-13
G40: Главный бухгалтер
F41: Фамилия, имя, отчество | G41: Тонкая Юлия Борисовна
F42: (код) номер телефона | G42: (4955) 26-55-05
G43: Должностное лицо, ответственное за составление формы
F44: Фамилия, имя, отчество | G44: Емельянова Анна Павловна
F45: Должность | G45: ведущий экономист
F46: (код) номер телефона | G46: (4955) 26-23-13
F47: e-mail | G47: eap@rybelset.ru
F49: Максимальный интервал представления отчёта за прошедшие периоды (дней) | G49: 90
E56: Дата последнего обновления реестра МР/МО: 16.04.2019 16:13:49
E57: Дата последнего обновления реестра организаций: 28.01.2021 10:40:27
F59: Срок предоставления отчета истек | G59: Нет
F60: Ссылка на обосновывающие материалы

Sheet Отпуск ЭЭ сет организациями
F5: L1 | G5: L1.1 | H5: L1.2 | I5: L2 | J5: L2.1 | K5: L2.2 | L5: L3 | M5: L3.1 | N5: L3.1 | O5: L3.2 | P5: L4.1 | Q5: L4.2
D8: Сведения об отпуске (передаче) электроэнергии распределительными сетевыми организациями отдельным категориям потребителей
D9: =IF(org="","Не определено",org) -> ОАО "Рыбинская городская электросеть"
K10: Коды по ОКЕИ: 1000 киловатт-часов – 246, мегаватт – 215, тысяча рублей – 384
D11: № п/п | E11: Наименование показателя | F11: Код строки | G11: Всего | H11: В том числе по уровню напряжения
H12: ВН | I12: СН1 | J12: СН2 | K12: НН
D13: 0 | E13: 1 | F13: 2 | G13: 3 | H13: 4 | I13: 5 | J13: 6 | K13: 7
D14: I. Электроэнергия (тыс. кВт ч)
D15: 1 | E15: Поступление в сеть из других организаций: | F15: 10 | G15: =SUM(H15:K15) -> 408358.047 | H15: =H16+H17+H20+H28 -> 362515.138 | I15: =I16+I17+I20+I28 -> 35242.104 | J15: =J16+J17+J20+J28 -> 10142.085 | K15: =K16+K17+K20+K28 -> 458.72 | P15: 10
D16: 1.1 | E16: из сетей ПАО "ФСК ЕЭС" | F16: 20 | G16: =SUM(H16:K16) -> 22523.666 | H16: 22523.666 | P16: 20
D17: 1.2 | E17: от генерирующих компаний и блок-станций: | F17: 30 | G17: 0 | H17: =SUM(H18:H19) -> 0 | I17: =SUM(I18:I19) -> 0 | J17: =SUM(J18:J19) -> 0 | K17: =SUM(K18:K19) -> 0 | P17: 30
D18: 1.2.0 | F18: 30
E19: Добавить организацию
D20: 1.3 | E20: от несетевых организаций: | F20: 230 | G20: 5603.092 | H20: =SUM(H21:H27) -> 1277.528 | I20: =SUM(I21:I27) -> 7.044 | J20: =SUM(J21:J27) -> 3859.8 | K20: =SUM(K21:K27) -> 458.72
D21: 1.3.0 | F21: 230
C22: О | D22: 1.3.1 | E22: ПУБЛИЧНОЕ АКЦИОНЕРНОЕ ОБЩЕСТВО "ОДК-САТУРН" | F22: 231 | G22: =SUM(H22:K22) -> 1277.528 | H22: 1277.528 | M22: 7610052644 | N22: 761001001 | O22: egrul
C23: О | D23: 1.3.2 | E23: АКЦИОНЕРНОЕ ОБЩЕСТВО "ОДК-ГАЗОВЫЕ ТУРБИНЫ" | F23: 232 | G23: =SUM(H23:K23) -> 7.044 | I23: 7.044 | M23: 7610070114 | N23: 761001001 | O23: egrul
C24: О | D24: 1.3.3 | E24: ОТКРЫТОЕ АКЦИОНЕРНОЕ ОБЩЕСТВО "190 ЦЕНТРАЛЬНЫЙ РЕМОНТНЫЙ ЗАВОД СРЕДСТВ СВЯЗИ" | F24: 233 | G24: =SUM(H24:K24) -> 3855.668 | J24: 3855.668 | M24: 7610084068 | N24: 761001001 | O24: egrul
C25: О | D25: 1.3.4 | E25: ЗАКРЫТОЕ АКЦИОНЕРНОЕ ОБЩЕСТВО "СВОБОДА" | F25: 234 | G25: =SUM(H25:K25) -> 458.72 | K25: 458.72 | M25: 7610008050 | N25: 761001001 | O25: egrul
C26: О | D26: 1.3.5 | E26: АКЦИОНЕРНОЕ ОБЩЕСТВО "СУДОСТРОИТЕЛЬНЫЙ ЗАВОД "ВЫМПЕЛ" | F26: 235 | G26: =SUM(H26:K26) -> 4.132 | J26: 4.132 | M26: 7610015674 | N26: 761001001 | O26: egrul
E27: Добавить организацию
D28: 1.4 | E28: от смежных сетевых организаций: | F28: 430 | G28: 380231.289 | H28: =SUM(H29:H33) -> 338713.944 | I28: =SUM(I29:I33) -> 35235.06 | J28: =SUM(J29:J33) -> 6282.285 | K28: =SUM(K29:K33) -> 0 | P28: 40
D29: 1.4.0 | F29: 430
C30: О | D30: 1.4.1 | E30: Филиал ПАО "МРСК Центра" - "Ярэнерго" | F30: 431 | G30: =SUM(H30:K30) -> 380026.737 | H30: 338636.928 | I30: 35235.06 | J30: 6154.749 | M30: 6901067107 | N30: 760602001 | O30: 26525044
C31: О | D31: 1.4.2 | E31: АО "Межрегиональная Энергосервисная Компания" | F31: 432 | G31: =SUM(H31:K31) -> 99.888 | H31: 77.016 | J31: 22.872 | M31: 7604217739 | N31: 760401001 | O31: 28274447
C32: О | D32: 1.4.3 | E32: Северная дирекция по энергообеспечению - структурное подразделение Трансэнерго - филиала ОАО "Российские железные дороги" | F32: 433 | G32: =SUM(H32:K32) -> 104.664 | J32: 104.664 | M32: 7708503727 | N32: 760445013 | O32: 26754796
E33: Добавить организацию
D34: 2 | E34: Поступление в сеть из других уровней напряжения (трансформация) | F34: 630 | G34: 592084.8027 | H34: =H36+H37+H38 -> 0 | I34: =I35+I37+I38 -> 0 | J34: =J35+J36+J38 -> 363300.3295 | K34: =K35+K36+K37 -> 228784.4732 | P34: 50
D35: 2.1 | E35: ВН | F35: 640 | G35: 342367.613 | J35: =H55 -> 342367.613 | P35: 60
D36: 2.2 | E36: СН1 | F36: 650 | G36: 20932.7165 | J36: =I55 -> 20932.7165 | P36: 70
D37: 2.3 | E37: СН2 | F37: 660 | G37: 228784.4732 | K37: =J55 -> 228784.4732 | P37: 80
D38: 2.4 | E38: НН | F38: 670 | G38: 0 | P38: 90
D39: 3 | E39: Генерация на установках организации (совмещение деятельности) | F39: 680 | G39: 0
D40: 4 | E40: Отпуск из сети: | F40: 690 | G40: 357428.6151 | H40: =H41+H43+H46+H54 -> 19830.96 | I40: =I41+I43+I46+I54 -> 12006.7315 | J40: =J41+J43+J46+J54 -> 120822.0123 | K40: =K41+K43+K46+K54 -> 204768.9113 | P40: 100
D41: 4.1 | E41: прямым прочим потребителям по договорам оказания услуг по передаче электрической энергии, в том числе: | F41: 700 | G41: 14990.4869 | I41: 1659.7435 | J41: 8173.054 | K41: 5157.6894
D42: 4.1.1 | E42: потребителям, опосредованно подключенным к шинам генераторов | F42: 710 | G42: 0
D43: 4.2 | E43: потребителям ГП, ЭСО, ЭСК, в том числе: | F43: 720 | G43: 179173.4545 | H43: 19830.96 | I43: 10346.988 | J43: 104167.052 | K43: 44828.4545
D44: 4.2.1 | E44: прочим потребителям, в том числе: | F44: 730 | G44: 179173.4545 | H44: =H43 -> 19830.96 | I44: =I43 -> 10346.988 | J44: =J43 -> 104167.052 | K44: =K43 -> 44828.4545
D45: 4.2.1.1 | E45: потребителям, опосредованно подключенным к шинам генераторов | F45: 740 | G45: 0
D46: 4.3 | E46: смежным сетевым организациям: | F46: 750 | G46: 6714.144 | H46: =SUM(H47:H53) -> 0 | I46: =SUM(I47:I53) -> 0 | J46: =SUM(J47:J53) -> 6492.978 | K46: =SUM(K47:K53) -> 221.166
D47: 4.3.0 | F47: 750
C48: О | D48: 4.3.1 | E48: АО "Ярославская электросетевая компания" | F48: 751 | G48: =SUM(H48:K48) -> 800.782 | J48: 784.905 | K48: 15.877 | M48: 7602069588 | N48: 760201001 | O48: 26524716
C49: О | D49: 4.3.2 | E49: АО "Оборонэнерго" филиал "Волго-Вятский" | F49: 752 | G49: =SUM(H49:K49) -> 903.845 | J49: 698.556 | K49: 205.289 | M49: 7704726225 | N49: 526343001 | O49: 27215840
C50: О | D50: 4.3.3 | E50: Филиал ПАО "МРСК Центра" - "Ярэнерго" | F50: 753 | G50: =SUM(H50:K50) -> 3484.073 | J50: 3484.073 | M50: 6901067107 | N50: 760602001 | O50: 26525044
C51: О | D51: 4.3.4 | E51: ООО "Техпромэксперт-Ярославль" | F51: 754 | G51: =SUM(H51:K51) -> 1314.016 | J51: 1314.016 | M51: 7604260276 | N51: 760401001 | O51: 28819186
C52: О | D52: 4.3.5 | E52: ООО "Северэнерго" | F52: 755 | G52: =SUM(H52:K52) -> 211.428 | J52: 211.428 | M52: 7627018507 | N52: 762701001 | O52: 30877421
E53: Добавить организацию
D54: 4.4 | E54: населению и приравненным к нему категориям | F54: 950 | G54: 156550.5297 | J54: 1988.9283 | K54: 154561.6014 | P54: 120
D55: 5 | E55: Отпуск в сеть других уровней напряжения | F55: 960 | G55: 592084.8026 | H55: =H15-H56-H58-H43 -> 342367.613 | I55: =I15-I40-I58 -> 20932.7165 | J55: =J15+J34-J58-J40 -> 228784.4732 | K55: =K15+K34-K58-K40 -> -0.0001000000047 | P55: 150
D56: 6 | E56: Хозяйственные нужды организации | F56: 970 | G56: 167.525 | H56: 167.525 | P56: 160
D57: 7 | E57: Собственное потребление (совмещение деятельности) | F57: 980 | G57: 0 | P57: 180
D58: 8 | E58: Общий объем потерь (фактические объемы), в том числе: | F58: 990 | G58: 50761.907 | H58: 149.04 | I58: 2302.656 | J58: 23835.929 | K58: 24474.282 | P58: 190
D59: 8.1 | E59: относимые на собственное потребление (фактическое значение) | F59: 1000 | G59: 0 | P59: 200
D60: 9 | E60: Нормативные потери (объемы потерь учтенные в сводном прогнозном балансе) | F60: 1010 | G60: 59425.5 | H60: 174.476 | I60: 2695.655 | J60: 27904.034 | K60: 28651.335
D61: 10 | E61: Объем превышения фактических объемов потерь электрической энергии над объемами потерь, учтенными в сводном прогнозном балансе за соответствующий расчетный период | F61: 1020 | G61: -8663.593 | H61: =H58-H60 -> -25.436 | I61: =I58-I60 -> -392.999 | J61: =J58-J60 -> -4068.105 | K61: =K58-K60 -> -4177.053
D62: 11 | E62: Небаланс | F62: 1030 | G62: 0 | H62: =(H15+H34+H39)-(H40+H55+H56+H57+H58) -> 0 | I62: =(I15+I34+I39)-(I40+I55+I56+I57+I58) -> 0 | J62: =(J15+J34+J39)-(J40+J55+J56+J57+J58) -> 0 | K62: =(K15+K34+K39)-(K40+K55+K56+K57+K58) -> 0 | P62: 210
D63: II. Мощность (МВт)
D64: 12 | E64: Поступление в сеть из других организаций: | F64: 1040 | G64: 103.8893 | H64: =H65+H66+H69+H72 -> 9.12 | I64: =I65+I66+I69+I72 -> 4.39 | J64: =J65+J66+J69+J72 -> 32.894 | K64: =K65+K66+K69+K72 -> 57.4853 | P64: 300
D65: 12.1 | E65: из сетей ПАО "ФСК ЕЭС" | F65: 1050 | G65: 0 | P65: 310
D66: 12.2 | E66: от генерирующих компаний и блок-станций: | F66: 1060 | G66: 0 | H66: =SUM(H67:H68) -> 0 | I66: =SUM(I67:I68) -> 0 | J66: =SUM(J67:J68) -> 0 | K66: =SUM(K67:K68) -> 0 | P66: 320
D67: 12.2.0 | F67: 1060
E68: Добавить организацию
D69: 12.3 | E69: от несетевых организаций: | F69: 1260 | G69: 0 | H69: =SUM(H70:H71) -> 0 | I69: =SUM(I70:I71) -> 0 | J69: =SUM(J70:J71) -> 0 | K69: =SUM(K70:K71) -> 0
D70: 12.3.0 | F70: 1260
E71: Добавить организацию
D72: 12.4 | E72: от смежных сетевых организаций: | F72: 1460 | G72: 103.8893 | H72: =SUM(H73:H75) -> 9.12 | I72: =SUM(I73:I75) -> 4.39 | J72: =SUM(J73:J75) -> 32.894 | K72: =SUM(K73:K75) -> 57.4853 | P72: 330
D73: 12.4.0 | F73: 1460
C74: О | D74: 12.4.1 | E74: Филиал ПАО "МРСК Центра" - "Ярэнерго" | F74: 1461 | G74: =SUM(H74:K74) -> 103.8893 | H74: 9.12 | I74: 4.39 | J74: 32.894 | K74: 57.4853 | M74: 6901067107 | N74: 760602001 | O74: 26525044
E75: Добавить организацию
D76: 13 | E76: Поступление в сеть из других уровней напряжения (трансформация) | F76: 1660 | G76: 0 | H76: =H78+H79+H80 -> 0 | I76: =I77+I79+I80 -> 0 | J76: =J77+J78+J80 -> 0 | K76: =K77+K78+K79 -> 0 | P76: 340
D77: 13.1 | E77: ВН | F77: 1670 | G77: 0 | P77: 350
D78: 13.2 | E78: СН1 | F78: 1680 | G78: 0 | P78: 360
D79: 13.3 | E79: СН2 | F79: 1690 | G79: 0 | P79: 370
D80: 13.4 | E80: НН | F80: 1700 | G80: 0 | P80: 380
D81: 14 | E81: Генерация на установках организации (совмещение деятельности) | F81: 1710 | G81: 0
D82: 15 | E82: Отпуск из сети: | F82: 1720 | G82: 103.8893 | H82: =H83+H85+H88+H96 -> 9.12 | I82: =I83+I85+I88+I96 -> 4.39 | J82: =J83+J85+J88+J96 -> 32.894 | K82: =K83+K85+K88+K96 -> 57.4853 | P82: 390
D83: 15.1 | E83: прямым прочим потребителям по договорам оказания услуг по передаче электрической энергии, в том числе: | F83: 1730 | G83: 8.459 | I83: 0.983 | J83: 6.009 | K83: 1.467
D84: 15.1.1 | E84: потребителям, опосредованно подключенным к шинам генераторов | F84: 1740 | G84: 0
D85: 15.2 | E85: потребителям ГП, ЭСО, ЭСК, в том числе: | F85: 1750 | G85: 48.8867 | H85: 9.12 | I85: =4.39-0.983 -> 3.407 | J85: =J74-J83-J88-J96 -> 25.1557 | K85: 11.204
D86: 15.2.1 | E86: прочим потребителям, в том числе: | F86: 1760 | G86: 0
D87: 15.2.1.1 | E87: потребителям, опосредованно подключенным к шинам генераторов | F87: 1770 | G87: 0
D88: 15.3 | E88: смежным сетевым организациям: | F88: 1780 | G88: 1.334 | H88: =SUM(H89:H95) -> 0 | I88: =SUM(I89:I95) -> 0 | J88: =SUM(J89:J95) -> 1.287 | K88: =SUM(K89:K95) -> 0.047
D89: 15.3.0 | F89: 1780
C90: О | D90: 15.3.1 | E90: АО "Ярославская электросетевая компания" | F90: 1781 | G90: =SUM(H90:K90) -> 0.06 | J90: 0.06 | M90: 7602069588 | N90: 760201001 | O90: 26524716
C91: О | D91: 15.3.2 | E91: АО "Оборонэнерго" филиал "Волго-Вятский" | F91: 1782 | G91: =SUM(H91:K91) -> 0.18 | J91: 0.144 | K91: 0.036 | M91: 7704726225 | N91: 526343001 | O91: 27215840
C92: О | D92: 15.3.3 | E92: Филиал ПАО "МРСК Центра" - "Ярэнерго" | F92: 1783 | G92: =SUM(H92:K92) -> 0.777 | J92: 0.777 | M92: 6901067107 | N92: 760602001 | O92: 26525044
C93: О | D93: 15.3.4 | E93: ООО "Техпромэксперт-Ярославль" | F93: 1784 | G93: =SUM(H93:K93) -> 0.306 | J93: 0.306 | M93: 7604260276 | N93: 760401001 | O93: 28819186
C94: О | D94: 15.3.5 | E94: ЗАО "Пансионат отдыха "Ярославль" | F94: 1785 | G94: =SUM(H94:K94) -> 0.011 | K94: 0.011 | M94: 7627015577 | N94: 762701001 | O94: 26514513
E95: Добавить организацию
D96: 15.4 | E96: населению и приравненным к нему категориям | F96: 1980 | G96: 45.2096 | J96: 0.4423 | K96: =K72-K83-K85-K88 -> 44.7673 | P96: 410
D97: 16 | E97: Отпуск в сеть других уровней напряжения | F97: 1990 | G97: 0 | P97: 440
D98: 17 | E98: Хозяйственные нужды организации | F98: 2000 | G98: 0 | P98: 450
D99: 18 | E99: Собственное потребление (совмещение деятельности) | F99: 2010 | G99: 0 | P99: 470
D100: 19 | E100: Общий объем потерь (фактические объемы), в том числе: | F100: 2020 | G100: 0 | P100: 480
D101: 19.1 | E101: относимые на собственное потребление | F101: 2030 | G101: 0 | P101: 490
D102: 20 | E102: Нормативные потери (объемы потерь учтенные в сводном прогнозном балансе) | F102: 2040 | G102: 0
D103: 21 | E103: Объем превышения фактических объемов потерь электрической энергии над объемами потерь, учтенными в сводном прогнозном балансе за соответствующий расчетный период | F103: 2050 | G103: 0 | H103: =H100-H102 -> 0 | I103: =I100-I102 -> 0 | J103: =J100-J102 -> 0 | K103: =K100-K102 -> 0
D104: 22 | E104: Небаланс | F104: 2060 | G104: 0 | H104: =(H64+H76+H81)-(H82+H97+H98+H99+H100) -> 0 | I104: =(I64+I76+I81)-(I82+I97+I98+I99+I100) -> 0 | J104: =(J64+J76+J81)-(J82+J97+J98+J99+J100) -> 0 | K104: =(K64+K76+K81)-(K82+K97+K98+K99+K100) -> 0 | P104: 500
D105: III. Мощность (МВт)
D106: 23 | E106: Заявленная мощность | F106: 2070 | G106: 103.8893 | H106: 9.12 | I106: 4.39 | J106: 32.894 | K106: 57.4853 | P106: 600
D107: 24 | E107: Максимальная мощность | F107: 2080 | G107: 0 | P107: 610
D108: 25 | E108: Резервируемая мощность | F108: 2090 | G108: 0 | P108: 620
D109: IV. Фактический полезный отпуск конечным потребителям (тыс. кВт ч; МВт)
D110: 26 | E110: Полезный отпуск конечным потребителям (тыс. кВт ч): | F110: 2100 | G110: 353944.5421 | H110: =SUM(H111:H112) -> 19830.96 | I110: =SUM(I111:I112) -> 12006.7315 | J110: =SUM(J111:J112) -> 117337.9393 | K110: =SUM(K111:K112) -> 204768.9113 | P110: 700
D111: 26.1 | E111: по одноставочному тарифу | F111: 2110 | G111: 0 | P111: 710
D112: 26.2 | E112: по двухставочному тарифу: | F112: 2120 | G112: 353944.5421 | H112: =H115 -> 19830.96 | I112: =I115 -> 12006.7315 | J112: =J115 -> 117337.9393 | K112: =K115 -> 204768.9113 | P112: 720
D113: 26.2.1 | E113: мощность (МВт), в том числе: | F113: 2130 | G113: 103.8893 | H113: =H106 -> 9.12 | I113: =I106 -> 4.39 | J113: =J106 -> 32.894 | K113: =K106 -> 57.4853 | P113: 730
D114: 26.2.1.1 | E114: опосредованно подключенным к шинам генераторов (МВт) | F114: 2140 | G114: 0
D115: 26.2.2 | E115: компенсация потерь (тыс. кВт ч) | F115: 2150 | G115: 353944.5421 | H115: =H40 -> 19830.96 | I115: =I40 -> 12006.7315 | J115: =J40-J50 -> 117337.9393 | K115: =K40 -> 204768.9113 | P115: 740
D116: 27 | E116: Полезный отпуск потребителям ГП, ЭСО (тыс. кВт ч): | F116: 2160 | G116: 0 | H116: =H117+H133 -> 0 | I116: =I117+I133 -> 0 | J116: =J117+J133 -> 0 | K116: =K117+K133 -> 0 | P116: 750
D117: 27.1 | E117: по одноставочному тарифу: | F117: 2170 | G117: 0 | H117: =H118+H119 -> 0 | I117: =I118+I119 -> 0 | J117: =J118+J119 -> 0 | K117: =K118+K119 -> 0 | P117: 760
D118: 27.1.1 | E118: прочим потребителям | F118: 2180 | G118: 0
D119: 27.1.2 | E119: населению и приравненным к нему категориям потребителей: | F119: 2190 | G119: 0 | H119: =H120+H123+H126+H129+H130+H131+H132 -> 0 | I119: =I120+I123+I126+I129+I130+I131+I132 -> 0 | J119: =J120+J123+J126+J129+J130+J131+J132 -> 0 | K119: =K120+K123+K126+K129+K130+K131+K132 -> 0
D120: 27.1.2.1 | E120: Населению, проживающему в городских населенных пунктах в домах, не оборудованных в установленном порядке стационарными электроплитами и (или) электроотопительными установками и приравненным к нему категориям потребителей: | F120: 2200 | G120: 0 | H120: =H121+H122 -> 0 | I120: =I121+I122 -> 0 | J120: =J121+J122 -> 0 | K120: =K121+K122 -> 0
D121: 27.1.2.1.1 | E121: в пределах социальной нормы потребления | F121: 2210 | G121: 0
D122: 27.1.2.1.2 | E122: сверх социальной нормы потребления | F122: 2220 | G122: 0
D123: 27.1.2.2 | E123: Населению, проживающему в городских населенных пунктах в домах, оборудованных в установленном порядке стационарными электроплитами и электроотопительными установками и приравненным к нему категориям потребителей: | F123: 2230 | G123: 0 | H123: =H124+H125 -> 0 | I123: =I124+I125 -> 0 | J123: =J124+J125 -> 0 | K123: =K124+K125 -> 0
D124: 27.1.2.2.1 | E124: в пределах социальной нормы потребления | F124: 2240 | G124: 0
D125: 27.1.2.2.2 | E125: сверх социальной нормы потребления | F125: 2250 | G125: 0
D126: 27.1.2.3 | E126: Населению, проживающему в сельских населенных пунктах и приравненным к нему потребителям: | F126: 2260 | G126: 0 | H126: =H127+H128 -> 0 | I126: =I127+I128 -> 0 | J126: =J127+J128 -> 0 | K126: =K127+K128 -> 0
D127: 27.1.2.3.1 | E127: в пределах социальной нормы потребления | F127: 2270 | G127: 0
D128: 27.1.2.3.2 | E128: сверх социальной нормы потребления | F128: 2280 | G128: 0
D129: 27.1.2.4 | E129: Садоводческим, огородническим или дачным некоммерческим объединениям граждан | F129: 2290 | G129: 0
D130: 27.1.2.5 | E130: Религиозным организациям | F130: 2300 | G130: 0
D131: 27.1.2.6 | E131: Юридическим лицам приобретающим электроэнергию в целях потребления на коммунально-бытовые нужды в населенных пунктах, жилых зонах при воинских частях и в целях потребления осужденными в помещениях для их содержания | F131: 2310 | G131: 0
D132: 27.1.2.7 | E132: Некоммерческим объединениям граждан (гаражно-строительные, гаражные кооперативы) и хозяйственные постройки физических лиц | F132: 2320 | G132: 0
D133: 27.2 | E133: по двухставочному тарифу (прочие потребители): | F133: 2330 | G133: 0 | H133: =H136 -> 0 | I133: =I136 -> 0 | J133: =J136 -> 0 | K133: =K136 -> 0 | P133: 770
D134: 27.2.1 | E134: мощность (МВт), в том числе: | F134: 2340 | G134: 0 | P134: 780
D135: 27.2.1.1 | E135: опосредованно подключенным к шинам генераторов (МВт) | F135: 2350 | G135: 0
D136: 27.2.2 | E136: компенсация потерь (тыс. кВт ч) | F136: 2360 | G136: 0 | P136: 790
D137: 28 | E137: Оплачиваемый сетевыми организациями объем оказанных услуг по индивидуальному тарифу: | F137: 2370 | G137: 0 | H137: =SUM(H138:H139) -> 0 | I137: =SUM(I138:I139) -> 0 | J137: =SUM(J138:J139) -> 0 | K137: =SUM(K138:K139) -> 0
D138: 28.1 | E138: по одноставочному тарифу | F138: 2380 | G138: 0
D139: 28.2 | E139: по двухставочному тарифу: | F139: 2390 | G139: 0 | H139: =H141 -> 0 | I139: =I141 -> 0 | J139: =J141 -> 0 | K139: =K141 -> 0
D140: 28.2.1 | E140: мощность (МВт) | F140: 2400 | G140: 0
D141: 28.2.2 | E141: компенсация потерь (тыс. кВт ч) | F141: 2410 | G141: 0
D142: V. Стоимость услуг (тыс. руб.)
D143: 29 | E143: Стоимость услуг, оплачиваемая потребителями (конечными потребителями по прямым договорам и ТСО): | F143: 2420 | G143: 578773.8639 | H143: =SUM( H144:H145) -> 44050.90554 | I143: =SUM( I144:I145) -> 22683.71815 | J143: =SUM( J144:J145) -> 186422.6946 | K143: =SUM( K144:K145) -> 325616.5456 | P143: 800
D144: 29.1 | E144: по одноставочному тарифу | F144: 2430 | G144: 0 | P144: 810
D145: 29.2 | E145: по двухставочному тарифу: | F145: 2440 | G145: 578773.8639 | H145: =H146+H148 -> 44050.90554 | I145: =I146+I148 -> 22683.71815 | J145: =J146+J148 -> 186422.6946 | K145: =K146+K148 -> 325616.5456 | P145: 820
D146: 29.2.1 | E146: мощность, в том числе: | F146: 2450 | G146: 365997.9254 | H146: =H113*244650.0515/1000*1.2*12 -> 32129.40196 | I146: =I113*244650.0515/1000*1.2*12 -> 15465.79766 | J146: =J113*244650.0515/1000*1.2*12 -> 115884.2706 | K146: =K113*244650.0515/1000*1.2*12 -> 202518.4551 | P146: 830
D147: 29.2.1.1 | E147: опосредованно потребителям с шин генераторов | F147: 2460 | G147: 0
D148: 29.2.2 | E148: компенсация потерь | F148: 2470 | G148: 212775.9385 | H148: =H115*500.963459*1.2/1000 -> 11921.50358 | I148: =I115*500.963459*1.2/1000 -> 7217.920492 | J148: =J115*500.963459*1.2/1000 -> 70538.42393 | K148: =K115*500.963459*1.2/1000 -> 123098.0905 | P148: 840
D149: 30 | E149: Стоимость услуг, оплачиваемая ГП, ЭСО: | F149: 2480 | G149: 0 | H149: =SUM( H150+H155) -> 0 | I149: =SUM( I150+I155) -> 0 | J149: =SUM( J150+J155) -> 0 | K149: =SUM( K150+K155) -> 0 | P149: 850
D150: 30.1 | E150: по одноставочному тарифу | F150: 2490 | G150: =SUM(H150:K150) -> 0 | H150: =SUM( H151:H152) -> 0 | I150: =SUM( I151:I152) -> 0 | J150: =SUM( J151:J152) -> 0 | K150: =SUM( K151:K152) -> 0 | P150: 860
D151: 30.1.1 | E151: прочим потребителям | F151: 2500 | G151: 0
D152: 30.1.2 | E152: населению и приравненным к нему категориям потребителей: | F152: 2510 | G152: 0 | H152: =H153+H154 -> 0 | I152: =I153+I154 -> 0 | J152: =J153+J154 -> 0 | K152: =K153+K154 -> 0
D153: 30.1.2.1 | E153: в пределах социальной нормы потребления | F153: 2520 | G153: 0
D154: 30.1.2.2 | E154: сверх социальной нормы потребления | F154: 2530 | G154: 0
D155: 30.2 | E155: по двухставочному тарифу (прочие потребители): | F155: 2540 | G155: 0 | H155: =H156+H158 -> 0 | I155: =I156+I158 -> 0 | J155: =J156+J158 -> 0 | K155: =K156+K158 -> 0 | P155: 870
D156: 30.2.1 | E156: мощность, в том числе: | F156: 2550 | G156: 0 | P156: 880
D157: 30.2.1.1 | E157: опосредованно потребителям с шин генераторов | F157: 2560 | G157: 0
D158: 30.2.2 | E158: компенсация потерь | F158: 2570 | G158: 0 | P158: 890
D159: 31 | E159: Стоимость услуг, оплачиваемых сетевыми организациями по индивидуальному тарифу: | F159: 2580 | G159: 0 | H159: =SUM( H160:H161) -> 0 | I159: =SUM( I160:I161) -> 0 | J159: =SUM( J160:J161) -> 0 | K159: =SUM( K160:K161) -> 0 | P159: 900
D160: 31.1 | E160: по одноставочному тарифу | F160: 2590 | G160: 0
D161: 31.2 | E161: по двухставочному тарифу: | F161: 2600 | G161: 0 | H161: =H162+H163 -> 0 | I161: =I162+I163 -> 0 | J161: =J162+J163 -> 0 | K161: =K162+K163 -> 0
D162: 31.2.1 | E162: мощность | F162: 2610 | G162: 0 | P162: 920
D163: 31.2.2 | E163: компенсация потерь | F163: 2620 | G163: 0 | P163: 910
E165: Должностное лицо, ответственное за | F165: =IF(Титульный!G45="","",Титульный!G45) -> ведущий экономист | I165: =IF(Титульный!G44="","",Титульный!G44) -> Емельянова Анна Павловна
E166: предоставление статистической информации | F166: (должность) | I166: (Ф.И.О.) | M166: (подпись)
E167: (лицо, уполномоченное предоставлять
E168: статистическую информацию от имени | F168: =IF(Титульный!G46="","",Титульный!G46) -> (4955) 26-23-13 | J168: «____» _________20__ год
E169: юридического лица) | F169: (номер контактного телефона) | J169: (дата составления документа)

Sheet Комментарии
D8: Комментарии
D9: =IF(org="","Не определено",org) -> ОАО "Рыбинская городская электросеть"
D11: № п/п | E11: Комментарий
D12: 1 | E12: 2
D13: 0
E14: Добавить комментарий

Sheet Проверка
B2: Результат проверки
B3: =IF(org="","Не определено",org) -> ОАО "Рыбинская городская электросеть"
B5: Ссылка | C5: Причина | D5: Статус

Sheet Statistic (hidden)
A1: 72
A2: 06.09.2018 19:26:20 | B2: 14.0 | C2: Windows (32-bit) NT 6.01
A3: 11.09.2018 18:16:52 | B3: 14.0 | C3: Windows (32-bit) NT 6.01
A4: 11.09.2018 20:57:11 | B4: 14.0 | C4: Windows (32-bit) NT 6.01
A5: 12.09.2018 09:35:26 | B5: 14.0 | C5: Windows (32-bit) NT 6.01
A6: 12.09.2018 10:24:58 | B6: 14.0 | C6: Windows (32-bit) NT 6.01
A7: 12.09.2018 16:27:05 | B7: 14.0 | C7: Windows (32-bit) NT 6.01
A8: 13.09.2018 15:09:23 | B8: 14.0 | C8: Windows (32-bit) NT 6.01
A9: 13.09.2018 16:04:22 | B9: 14.0 | C9: Windows (32-bit) NT 6.01
A10: 13.09.2018 16:05:18 | B10: 14.0 | C10: Windows (32-bit) NT 6.01
A11: 13.09.2018 19:14:38 | B11: 14.0 | C11: Windows (32-bit) NT 6.01
A12: 14.09.2018 11:13:01 | B12: 14.0 | C12: Windows (32-bit) NT 6.01
A13: 14.09.2018 11:18:37 | B13: 14.0 | C13: Windows (32-bit) NT 6.01
A14: 17.09.2018 21:09:54 | B14: 14.0 | C14: Windows (32-bit) NT 6.01
A15: 18.09.2018 10:38:31 | B15: 14.0 | C15: Windows (32-bit) NT 6.01
A16: 18.09.2018 12:43:39 | B16: 14.0 | C16: Windows (32-bit) NT 6.01
A17: 18.09.2018 12:47:52 | B17: 14.0 | C17: Windows (32-bit) NT 6.01
A18: 18.09.2018 12:54:00 | B18: 14.0 | C18: Windows (32-bit) NT 6.01
A19: 18.09.2018 12:57:51 | B19: 14.0 | C19: Windows (32-bit) NT 6.01
A20: 18.09.2018 13:09:47 | B20: 14.0 | C20: Windows (32-bit) NT 6.01
A21: 18.09.2018 13:11:28 | B21: 14.0 | C21: Windows (32-bit) NT 6.01
A22: 18.09.2018 13:28:28 | B22: 14.0 | C22: Windows (32-bit) NT 6.01
A23: 18.09.2018 15:52:57 | B23: 14.0 | C23: Windows (32-bit) NT 6.01
A24: 18.09.2018 17:01:38 | B24: 14.0 | C24: Windows (32-bit) NT 6.01
A25: 18.09.2018 18:14:48 | B25: 14.0 | C25: Windows (32-bit) NT 6.01
A26: 19.09.2018 16:09:09 | B26: 14.0 | C26: Windows (32-bit) NT 6.01
A27: 19.09.2018 18:23:43 | B27: 14.0 | C27: Windows (32-bit) NT 6.01
A28: 20.09.2018 10:53:47 | B28: 14.0 | C28: Windows (32-bit) NT 6.01
A29: 20.09.2018 11:00:09 | B29: 14.0 | C29: Windows (32-bit) NT 6.01
A30: 20.09.2018 11:51:55 | B30: 14.0 | C30: Windows (32-bit) NT 6.01
A31: 20.09.2018 12:24:20 | B31: 14.0 | C31: Windows (32-bit) NT 6.01
A32: 20.09.2018 15:06:45 | B32: 14.0 | C32: Windows (32-bit) NT 6.01
A33: 20.09.2018 15:26:56 | B33: 14.0 | C33: Windows (32-bit) NT 6.01
A34: 21.09.2018 13:25:15 | B34: 14.0 | C34: Windows (32-bit) NT 6.01
A35: 21.09.2018 15:22:58 | B35: 14.0 | C35: Windows (32-bit) NT 6.01
A36: 21.09.2018 15:42:42 | B36: 14.0 | C36: Windows (32-bit) NT 6.01
A37: 21.09.2018 16:03:56 | B37: 14.0 | C37: Windows (32-bit) NT 6.01
A38: 21.09.2018 20:18:40 | B38: 14.0 | C38: Windows (32-bit) NT 6.01
A39: 22.09.2018 17:11:07 | B39: 14.0 | C39: Windows (32-bit) NT 6.01
A40: 23.09.2018 20:21:15 | B40: 14.0 | C40: Windows (32-bit) NT 6.01
A41: 24.09.2018 14:40:14 | B41: 14.0 | C41: Windows (32-bit) NT 6.01
A42: 25.09.2018 14:58:01 | B42: 14.0 | C42: Windows (32-bit) NT 6.01
A43: 25.09.2018 19:01:11 | B43: 14.0 | C43: Windows (32-bit) NT 6.01
A44: 03.10.2018 12:23:00 | B44: 14.0 | C44: Windows (32-bit) NT 6.01
A45: 16.04.2019 16:12:01 | B45: 12.0 | C45: Windows (32-bit) NT 6.01
A46: 16.04.2019 16:21:21 | B46: 12.0 | C46: Windows (32-bit) NT 6.01
A47: 16.04.2019 16:33:37 | B47: 12.0 | C47: Windows (32-bit) NT 6.01
A48: 17.04.2019 08:50:40 | B48: 12.0 | C48: Windows (32-bit) NT 6.01
A49: 14.06.2019 09:38:13 | B49: 12.0 | C49: Windows (32-bit) NT 6.01
A50: 14.06.2019 13:00:44 | B50: 12.0 | C50: Windows (32-bit) NT 6.01
A51: 14.06.2019 15:14:46 | B51: 12.0 | C51: Windows (32-bit) NT 6.01
A52: 17.07.2019 12:52:08 | B52: 12.0 | C52: Windows (32-bit) NT 6.01
A53: 19.07.2019 14:37:08 | B53: 12.0 | C53: Windows (32-bit) NT 6.01
A54: 21.08.2019 09:09:28 | B54: 12.0 | C54: Windows (32-bit) NT 6.01
A55: 21.08.2019 09:32:16 | B55: 12.0 | C55: Windows (32-bit) NT 6.01
A56: 25.09.2019 11:49:03 | B56: 12.0 | C56: Windows (32-bit) NT 6.01
A57: 25.09.2019 12:19:41 | B57: 12.0 | C57: Windows (32-bit) NT 6.01
A58: 25.09.2019 13:39:00 | B58: 12.0 | C58: Windows (32-bit) NT 6.01
A59: 22.10.2019 13:11:48 | B59: 12.0 | C59: Windows (32-bit) NT 6.01
A60: 22.10.2019 13:22:58 | B60: 12.0 | C60: Windows (32-bit) NT 6.01
A61: 22.10.2019 16:17:03 | B61: 12.0 | C61: Windows (32-bit) NT 6.01
A62: 14.11.2019 13:01:27 | B62: 12.0 | C62: Windows (32-bit) NT 6.01
A63: 14.11.2019 13:55:07 | B63: 12.0 | C63: Windows (32-bit) NT 6.01
A64: 14.11.2019 14:09:34 | B64: 12.0 | C64: Windows (32-bit) NT 6.01
A65: 14.11.2019 14:37:29 | B65: 12.0 | C65: Windows (32-bit) NT 6.01
A66: 06.01.2020 11:33:55 | B66: 12.0 | C66: Windows (32-bit) NT 6.01
A67: 29.01.2020 11:53:01 | B67: 14.0 | C67: Windows (32-bit) NT 6.01
A68: 06.02.2020 13:38:39 | B68: 14.0 | C68: Windows (32-bit) NT 6.01
A69: 06.02.2020 15:51:47 | B69: 14.0 | C69: Windows (32-bit) NT 6.01
A70: 17.02.2020 17:00:23 | B70: 14.0 | C70: Windows (32-bit) NT 6.01
A71: 17.02.2020 17:24:52 | B71: 14.0 | C71: Windows (32-bit) NT 6.01
A72: 28.01.2021 09:23:32 | B72: 12.0 | C72: Windows (32-bit) NT 6.01

Sheet TEHSHEET (hidden)
B1: Алтайский край | D1: MONTH | E1: YEAR | F1: DaNet | G1: type_report
A2: 0 | B2: Амурская область | D2: январь | E2: 2018 | F2: Да | G2: В целом по организации
B3: Архангельская область | D3: февраль | E3: 2019 | F3: Нет | G3: По обособленному подразделению
B4: Астраханская область | D4: март | E4: 2020
B5: Белгородская область | D5: апрель | E5: 2021
B6: Брянская область | D6: май | E6: 2022
B7: Владимирская область | D7: июнь
B8: Волгоградская область | D8: июль
B9: Вологодская область | D9: август
B10: Воронежская область | D10: сентябрь
B11: г.Байконур | D11: октябрь
B12: г. Москва | D12: ноябрь
B13: г.Санкт-Петербург | D13: декабрь
B14: г.Севастополь | D14: год
B15: Еврейская автономная область
B16: Забайкальский край
B17: Ивановская область
B18: Иркутская область
B19: Кабардино-Балкарская республика
B20: Калининградская область
B21: Калужская область
B22: Камчатский край | D22: URL_FORMAT
B23: Карачаево-Черкесская республика | D23: https://portal.eias.ru/Portal/DownloadPage.aspx?type=12&guid=????????-????-????-????-????????????
B24: Кемеровская область | D24: MSG_URL
B25: Кировская область | D25: ="Необходимо ввести ссылку на обосновывающие материалы в формате: """ & URL_FORMAT & """ (смотри раздел ""Методология заполнения"" листа ""Инструкция"")" -> Необходимо ввести ссылку на обосновывающие материалы в формате: "https://portal.eias.ru/Portal/DownloadPage.aspx?type=12&guid=????????-????-????-????-????????????" (смотри раздел "Методология заполнения" листа "Инструкция")
B26: Костромская область
B27: Краснодарский край
B28: Красноярский край
B29: Курганская область
B30: Курская область
B31: Ленинградская область
B32: Липецкая область
B33: Магаданская область
B34: Московская область
B35: Мурманская область
B36: Ненецкий автономный округ
B37: Нижегородская область
B38: Новгородская область
B39: Новосибирская область
B40: Омская область
B41: Оренбургская область
B42: Орловская область
B43: Пензенская область
B44: Пермский край
B45: Приморский край
B46: Псковская область
B47: Республика Адыгея
B48: Республика Алтай
B49: Республика Башкортостан
B50: Республика Бурятия
B51: Республика Дагестан
B52: Республика Ингушетия
B53: Республика Калмыкия
B54: Республика Карелия
B55: Республика Коми
B56: Республика Крым
B57: Республика Марий Эл
B58: Республика Мордовия
B59: Республика Саха (Якутия)
B60: Республика Северная Осетия-Алания
B61: Республика Татарстан
B62: Республика Тыва
B63: Республика Хакасия
B64: Ростовская область
B65: Рязанская область
B66: Самарская область
B67: Саратовская область
B68: Сахалинская область
B69: Свердловская область
B70: Смоленская область
B71: Ставропольский край
B72: Тамбовская область
B73: Тверская область
B74: Томская область
B75: Тульская область
B76: Тюменская область
B77: Удмуртская республика
B78: Ульяновская область
B79: Хабаровский край
B80: Ханты-Мансийский автономный округ
B81: Челябинская область
B82: Чеченская республика
B83: Чувашская республика
B84: Чукотский автономный округ
B85: Ямало-Ненецкий автономный округ
B86: Ярославская область

Sheet et_union (hidden)
A2: et_com
C3: О | D3: 1
A4: et_org
G5: =SUM(H5:K5) -> 0

Sheet AllSheetsInThisWorkbook (hidden)
A1: Расчетные листы | B1: Скрытые листы
A2: Инструкция | B2: Statistic
A3: Лог обновления | B3: TEHSHEET
A4: Титульный | B4: et_union
A5: Отпуск ЭЭ сет организациями | B5: AllSheetsInThisWorkbook
A6: Комментарии | B6: mod_01
A7: Проверка | B7: mod_11
B8: modComm
B9: modListProv
B10: modButton
B11: modInstruction
B12: modHTTP
B13: REESTR_ORG
B14: REESTR_FIL
B15: REESTR_MO
B16: REESTR_EGRUL
B17: modfrmRegion
B18: modfrmReestr
B19: modfrmFindEGRUL
B20: modfrmCheckUpdates
B21: modReestr
B22: modUpdTemplMain
B23: modHyperlink
B24: modClassifierValidate

Sheet mod_01 (hidden)

Sheet mod_11 (hidden)

Sheet modComm (hidden)

Sheet modListProv (hidden)

Sheet modButton (hidden)

Sheet modInstruction (hidden)

Sheet modHTTP (hidden)

Sheet REESTR_ORG (hidden)
B1: REGION_ID | C1: REGION_NAME | D1: MR_NAME | E1: OKTMR_NAME | F1: MO_NAME | G1: OKTMO_NAME | H1: RST_ORG_ID | I1: ORG_NAME | J1: INN_NAME | K1: KPP_NAME | L1: ORG_START_DATE | M1: ORG_END_DATE | N1: VDET_START_DATE | O1: VDET_END_DATE | P1: VDET_NAME | Q1: VDET_NAME_LIST | R1: VDET_FULL_NAME_LIST | S1: HAS_TARIFF
A2: 1 | B2: 2603 | C2: Ярославская область | H2: 26318885 | I2: АО "Газпром энергосбыт" | J2: 7705750968 | K2: 772901001 | Q2: Нерегулируемый сбыт | R2: /Электроэнергетика/Сбыт ЭЭ/Нерегулируемый сбыт | S2: Y
A3: 2 | B3: 2603 | C3: Ярославская область | H3: 28822308 | I3: АО "Малая комплексная энергетика" | J3: 7612043797 | K3: 760601001 | Q3: Некомбинированная выработка | R3: /Электроэнергетика/Производство ЭЭ/Некомбинированная выработка | S3: Y
A4: 3 | B4: 2603 | C4: Ярославская область | H4: 28274447 | I4: АО "Межрегиональная Энергосервисная Компания" | J4: 7604217739 | K4: 760401001 | L4: 04-10-2013 00:00:00 | Q4: РСО | R4: /Электроэнергетика/Передача ЭЭ/РСО | S4: Y
A5: 4 | B5: 2603 | C5: Ярославская область | H5: 26318876 | I5: АО "Мосэнергосбыт" | J5: 7736520080 | K5: 997650001 | Q5: Нерегулируемый сбыт | R5: /Электроэнергетика/Сбыт ЭЭ/Нерегулируемый сбыт | S5: Y
A6: 5 | B6: 2603 | C6: Ярославская область | H6: 27215840 | I6: АО "Оборонэнерго" филиал "Волго-Вятский" | J6: 7704726225 | K6: 526343001 | L6: 01-09-2011 00:00:00 | Q6: РСО | R6: /Электроэнергетика/Передача ЭЭ/РСО | S6: Y
A7: 6 | B7: 2603 | C7: Ярославская область | H7: 26617350 | I7: АО "Оборонэнергосбыт" | J7: 7704731218 | K7: 773043001 | L7: 23-03-2010 00:00:00 | Q7: ГП | R7: /Электроэнергетика/Сбыт ЭЭ/ГП | S7: Y
A8: 7 | B8: 2603 | C8: Ярославская область | H8: 26483340 | I8: АО "Ресурс" | J8: 7616009483 | K8: 761601001 | Q8: РСО | R8: /Электроэнергетика/Передача ЭЭ/РСО | S8: Y
A9: 8 | B9: 2603 | C9: Ярославская область | H9: 26448586 | I9: АО "Сибурэнергоменеджмент" | J9: 7727276526 | K9: 366301001 | Q9: Нерегулируемый сбыт | R9: /Электроэнергетика/Сбыт ЭЭ/Нерегулируемый сбыт | S9: Y
A10: 9 | B10: 2603 | C10: Ярославская область | H10: 28134686 | I10: АО "Тутаевская ПГУ" | J10: 7611020204 | K10: 761101001 | Q10: Комбинированная выработка | R10: /Электроэнергетика/Производство ЭЭ/Комбинированная выработка | S10: Y
A11: 10 | B11: 2603 | C11: Ярославская область | H11: 27651604 | I11: АО "Электросети ЯГК" | J11: 7606084668 | K11: 760601001 | Q11: РСО | R11: /Электроэнергетика/Передача ЭЭ/РСО | S11: Y
A12: 11 | B12: 2603 | C12: Ярославская область | H12: 26569087 | I12: АО "Ярославская генерирующая компания" | J12: 7604178769 | K12: 760601001 | Q12: Некомбинированная выработка | R12: /Электроэнергетика/Производство ЭЭ/Некомбинированная выработка | S12: Y
A13: 12 | B13: 2603 | C13: Ярославская область | H13: 26524716 | I13: АО "Ярославская электросетевая компания" | J13: 7602069588 | K13: 760201001 | Q13: РСО | R13: /Электроэнергетика/Передача ЭЭ/РСО | S13: Y
A14: 13 | B14: 2603 | C14: Ярославская область | H14: 26514575 | I14: АО "Ярославский завод дизельной аппаратуры" | J14: 7601000833 | K14: 760601001 | Q14: РСО | R14: /Электроэнергетика/Передача ЭЭ/РСО | S14: Y
A15: 14 | B15: 2603 | C15: Ярославская область | H15: 26811543 | I15: АО "Ярославский технический углерод имени В.Ю. Орлова" | J15: 7605000714 | K15: 760450001 | Q15: Комбинированная выработка | R15: /Электроэнергетика/Производство ЭЭ/Комбинированная выработка | S15: Y
A16: 15 | B16: 2603 | C16: Ярославская область | H16: 26811543 | I16: АО "Ярославский технический углерод имени В.Ю. Орлова" | J16: 7605000714 | K16: 760450001 | Q16: Нерегулируемый сбыт :: Некомбинированная выработка | R16: /Электроэнергетика/Сбыт ЭЭ/Нерегулируемый сбыт :: /Электроэнергетика/Производство ЭЭ/Некомбинированная выработка | S16: Y
A17: 16 | B17: 2603 | C17: Ярославская область | H17: 26483314 | I17: Бурмакинское МП ЖКХ | J17: 7621001440 | K17: 762101001 | Q17: РСО | R17: /Электроэнергетика/Передача ЭЭ/РСО | S17: Y
A18: 17 | B18: 2603 | C18: Ярославская область | H18: 26319641 | I18: Вологодский филиал ПАО «МРСК Северо-Запада» | J18: 7802312751 | K18: 352543001 | L18: 07-03-2008 00:00:00 | Q18: РСО | R18: /Электроэнергетика/Передача ЭЭ/РСО | S18: N
A19: 18 | B19: 2603 | C19: Ярославская область | H19: 26319641 | I19: Вологодский филиал ПАО «МРСК Северо-Запада» | J19: 7802312751 | K19: 352543001 | L19: 07-03-2008 00:00:00 | Q19: Нерегулируемый сбыт | R19: /Электроэнергетика/Сбыт ЭЭ/Нерегулируемый сбыт | S19: Y
A20: 19 | B20: 2603 | C20: Ярославская область | H20: 26525046 | I20: ЗАО "Железобетон" | J20: 7601000262 | K20: 760201001 | Q20: РСО | R20: /Электроэнергетика/Передача ЭЭ/РСО | S20: Y
A21: 20 | B21: 2603 | C21: Ярославская область | H21: 27651563 | I21: ЗАО "Объединенная электросетевая компания-Ярославль" | J21: 7604070035 | K21: 760401001 | Q21: РСО | R21: /Электроэнергетика/Передача ЭЭ/РСО | S21: Y
A22: 21 | B22: 2603 | C22: Ярославская область | H22: 26514513 | I22: ЗАО "Пансионат отдыха "Ярославль" | J22: 7627015577 | K22: 762701001 | Q22: РСО | R22: /Электроэнергетика/Передача ЭЭ/РСО | S22: Y
A23: 22 | B23: 2603 | C23: Ярославская область | H23: 26483202 | I23: ЗАО "Энергосервис" | J23: 7603026805 | K23: 760301001 | Q23: РСО | R23: /Электроэнергетика/Передача ЭЭ/РСО | S23: Y
A24: 23 | B24: 2603 | C24: Ярославская область | H24: 26649314 | I24: ЗАО "Ярославль-Резинотехника" | J24: 7603024491 | K24: 760301001 | Q24: РСО | R24: /Электроэнергетика/Передача ЭЭ/РСО | S24: Y
A25: 24 | B25: 2603 | C25: Ярославская область | H25: 26524855 | I25: ИП А.В. Шутов | J25: 760400719100 | K25: отсутствует | Q25: РСО | R25: /Электроэнергетика/Передача ЭЭ/РСО | S25: Y
A26: 25 | B26: 2603 | C26: Ярославская область | H26: 26319519 | I26: МУП "Горэлектросеть" | J26: 7611003390 | K26: 761101001 | Q26: РСО | R26: /Электроэнергетика/Передача ЭЭ/РСО | S26: Y
A27: 26 | B27: 2603 | C27: Ярославская область | H27: 26785009 | I27: МУП "Энергетик" | J27: 7608010100 | K27: 760801002 | Q27: Комбинированная выработка | R27: /Электроэнергетика/Производство ЭЭ/Комбинированная выработка | S27: Y
A28: 27 | B28: 2603 | C28: Ярославская область | H28: 29646676 | I28: МУП "Энергетический ресурс" Некрасовского муниципального района | J28: 7621010075 | K28: 762101001 | Q28: РСО | R28: /Электроэнергетика/Передача ЭЭ/РСО | S28: Y
A29: 28 | B29: 2603 | C29: Ярославская область | H29: 26483322 | I29: МУП ЖКХ "Заволжское" | J29: 7621006992 | K29: 762101001 | Q29: Комбинированная выработка | R29: /Электроэнергетика/Производство ЭЭ/Комбинированная выработка | S29: Y
A30: 29 | B30: 2603 | C30: Ярославская область | H30: 26514525 | I30: ОАО "ЖКХ "Заволжье" | J30: 7627032974 | K30: 762701001 | Q30: РСО | R30: /Электроэнергетика/Передача ЭЭ/РСО | S30: Y
A31: 30 | B31: 2603 | C31: Ярославская область | H31: 26525048 | I31: ОАО "Металлоторг" | J31: 7627005071 | K31: 760401001 | Q31: РСО | R31: /Электроэнергетика/Передача ЭЭ/РСО | S31: Y
A32: 31 | B32: 2603 | C32: Ярославская область | H32: 27226637 | I32: ОАО "Оборонэнерго" Филиал "Верхневолжский" | J32: 7704726225 | K32: 695043002 | Q32: РСО | R32: /Электроэнергетика/Передача ЭЭ/РСО | S32: Y
A33: 32 | B33: 2603 | C33: Ярославская область | H33: 30919136 | I33: ОАО "Рыбинская городская электросеть" | J33: 7610096000 | K33: 761001001 | L33: 05-06-2017 00:00:00 | Q33: РСО | R33: /Электроэнергетика/Передача ЭЭ/РСО | S33: Y
A34: 33 | B34: 2603 | C34: Ярославская область | H34: 26524831 | I34: ОАО "Северное производственно-комплектовочное предприятие "Оборонпромкомплекс" | J34: 7602001371 | K34: 760201001 | Q34: РСО | R34: /Электроэнергетика/Передача ЭЭ/РСО | S34: Y
A35: 34 | B35: 2603 | C35: Ярославская область | H35: 26524735 | I35: ОАО "Ярославская городская электросеть" | J35: 7604168778 | K35: 760401001 | Q35: РСО | R35: /Электроэнергетика/Передача ЭЭ/РСО | S35: Y
A36: 35 | B36: 2603 | C36: Ярославская область | H36: 26319496 | I36: ОАО "Ярославский нефтеперерабатывающий завод им. Д.И. Менделеева" | J36: 7611002100 | K36: 761101001 | Q36: РСО | R36: /Электроэнергетика/Передача ЭЭ/РСО | S36: Y
A37: 36 | B37: 2603 | C37: Ярославская область | H37: 26524898 | I37: ОАО "Ярославский судостроительный завод" | J37: 7601001080 | K37: 760101001 | Q37: РСО | R37: /Электроэнергетика/Передача ЭЭ/РСО | S37: Y
A38: 37 | B38: 2603 | C38: Ярославская область | H38: 26837653 | I38: ОАО ГК «ТНС энерго» | J38: 7705541227 | K38: 770201001 | Q38: Нерегулируемый сбыт | R38: /Электроэнергетика/Сбыт ЭЭ/Нерегулируемый сбыт | S38: Y
A39: 38 | B39: 2603 | C39: Ярославская область | H39: 28254087 | I39: ООО "БизнесПродуктГрупп" | J39: 7708579934 | K39: 772301001 | Q39: РСО | R39: /Электроэнергетика/Передача ЭЭ/РСО | S39: Y
A40: 39 | B40: 2603 | C40: Ярославская область | H40: 26525005 | I40: ООО "Газпром энерго" Северный филиал | J40: 7736186950 | K40: 990203002 | Q40: РСО | R40: /Электроэнергетика/Передача ЭЭ/РСО | S40: Y
A41: 40 | B41: 2603 | C41: Ярославская область | H41: 26613700 | I41: ООО "Гарант Энерго" | J41: 7709782777 | K41: 770901001 | Q41: Нерегулируемый сбыт | R41: /Электроэнергетика/Сбыт ЭЭ/Нерегулируемый сбыт | S41: Y
A42: 41 | B42: 2603 | C42: Ярославская область | H42: 26527116 | I42: ООО "ГлавЭнергоСбыт" | J42: 7725571452 | K42: 772501001 | Q42: Нерегулируемый сбыт | R42: /Электроэнергетика/Сбыт ЭЭ/Нерегулируемый сбыт | S42: Y
A43: 42 | B43: 2603 | C43: Ярославская область | H43: 26427401 | I43: ООО "Дизаж М" | J43: 7728587330 | K43: 772801001 | Q43: Нерегулируемый сбыт | R43: /Электроэнергетика/Сбыт ЭЭ/Нерегулируемый сбыт | S43: Y
A44: 43 | B44: 2603 | C44: Ярославская область | H44: 30911713 | I44: ООО "ЕЭС-Гарант" | J44: 5024173259 | K44: 502401001 | L44: 01-03-2017 00:00:00 | Q44: Нерегулируемый сбыт | R44: /Электроэнергетика/Сбыт ЭЭ/Нерегулируемый сбыт | S44: Y
A45: 44 | B45: 2603 | C45: Ярославская область | H45: 27855290 | I45: ООО "Инженерные изыскания" | J45: 1103029229 | K45: 352801001 | L45: 14-01-2004 00:00:00 | Q45: Нерегулируемый сбыт | R45: /Электроэнергетика/Сбыт ЭЭ/Нерегулируемый сбыт | S45: Y
A46: 45 | B46: 2603 | C46: Ярославская область | H46: 26525287 | I46: ООО "Каскад - Энергосбыт" | J46: 4028033356 | K46: 992802001 | Q46: Нерегулируемый сбыт | R46: /Электроэнергетика/Сбыт ЭЭ/Нерегулируемый сбыт | S46: Y
A47: 46 | B47: 2603 | C47: Ярославская область | H47: 26525025 | I47: ООО "Каскад - Энергосеть" | J47: 4028033476 | K47: 992801002 | Q47: РСО | R47: /Электроэнергетика/Передача ЭЭ/РСО | S47: Y
A48: 47 | B48: 2603 | C48: Ярославская область | H48: 26319520 | I48: ООО "Льняной комбинат "ТУЛЬМА" | J48: 7604236040 | K48: 760401001 | Q48: РСО | R48: /Электроэнергетика/Передача ЭЭ/РСО | S48: Y
A49: 48 | B49: 2603 | C49: Ярославская область | H49: 26516013 | I49: ООО "МАРЭМ+" | J49: 7702387915 | K49: 770201001 | L49: 16-02-1998 00:00:00 | Q49: Нерегулируемый сбыт | R49: /Электроэнергетика/Сбыт ЭЭ/Нерегулируемый сбыт | S49: Y
A50: 49 | B50: 2603 | C50: Ярославская область | H50: 31214277 | I50: ООО "МТС ЭНЕРГО" | J50: 9709006506 | K50: 772601001 | L50: 24-10-2018 00:00:00 | Q50: Нерегулируемый сбыт | R50: /Электроэнергетика/Сбыт ЭЭ/Нерегулируемый сбыт | S50: Y
A51: 50 | B51: 2603 | C51: Ярославская область | H51: 27667971 | I51: ООО "МагнитЭнерго" | J51: 7715902899 | K51: 771501001 | Q51: Нерегулируемый сбыт | R51: /Электроэнергетика/Сбыт ЭЭ/Нерегулируемый сбыт | S51: Y
A52: 51 | B52: 2603 | C52: Ярославская область | H52: 28254100 | I52: ООО "Производственная фирма "СТИС" | J52: 7606074860 | K52: 760601001 | Q52: РСО | R52: /Электроэнергетика/Передача ЭЭ/РСО | S52: Y
A53: 52 | B53: 2603 | C53: Ярославская область | H53: 26416221 | I53: ООО "РН-Энерго" | J53: 7706525041 | K53: 997650001 | L53: 02-05-2012 00:00:00 | Q53: Нерегулируемый сбыт | R53: /Электроэнергетика/Сбыт ЭЭ/Нерегулируемый сбыт | S53: Y
A54: 53 | B54: 2603 | C54: Ярославская область | H54: 26318820 | I54: ООО "Региональная энергосбытовая компания" (ОПП) | J54: 4633017746 | K54: 463301001 | Q54: Нерегулируемый сбыт | R54: /Электроэнергетика/Сбыт ЭЭ/Нерегулируемый сбыт | S54: Y
A55: 54 | B55: 2603 | C55: Ярославская область | H55: 26525040 | I55: ООО "Регионэлектросеть" | J55: 4401063157 | K55: 760401001 | Q55: РСО | R55: /Электроэнергетика/Передача ЭЭ/РСО | S55: Y
A56: 55 | B56: 2603 | C56: Ярославская область | H56: 26525036 | I56: ООО "Ресурс" | J56: 7611018163 | K56: 761101001 | Q56: РСО | R56: /Электроэнергетика/Передача ЭЭ/РСО | S56: Y
A57: 56 | B57: 2603 | C57: Ярославская область | H57: 26525270 | I57: ООО "Русэнергоресурс" | J57: 7706288496 | K57: 997450001 | Q57: Нерегулируемый сбыт | R57: /Электроэнергетика/Сбыт ЭЭ/Нерегулируемый сбыт | S57: Y
A58: 57 | B58: 2603 | C58: Ярославская область | H58: 26502786 | I58: ООО "Русэнергосбыт" | J58: 7706284124 | K58: 770401001 | Q58: ГП | R58: /Электроэнергетика/Сбыт ЭЭ/ГП | S58: Y
A59: 58 | B59: 2603 | C59: Ярославская область | H59: 30877421 | I59: ООО "Северэнерго" | J59: 7627018507 | K59: 762701001 | Q59: РСО | R59: /Электроэнергетика/Передача ЭЭ/РСО | S59: Y
A60: 59 | B60: 2603 | C60: Ярославская область | H60: 27555004 | I60: ООО "Спецторг Плюс" | J60: 7604076460 | K60: 760401001 | L60: 31-05-2005 00:00:00 | Q60: РСО | R60: /Электроэнергетика/Передача ЭЭ/РСО | S60: Y
A61: 60 | B61: 2603 | C61: Ярославская область | H61: 31095969 | I61: ООО "ТГК-2 Энергосбыт" | J61: 7604193710 | K61: 290101001 | L61: 18-04-2018 00:00:00 | Q61: Нерегулируемый сбыт | R61: /Электроэнергетика/Сбыт ЭЭ/Нерегулируемый сбыт | S61: Y
A62: 61 | B62: 2603 | C62: Ярославская область | H62: 27569416 | I62: ООО "Тепловая энергетическая компания - 1" | J62: 7604188573 | K62: 760401001 | Q62: РСО | R62: /Электроэнергетика/Передача ЭЭ/РСО | S62: Y
A63: 62 | B63: 2603 | C63: Ярославская область | H63: 28819186 | I63: ООО "Техпромэксперт-Ярославль" | J63: 7604260276 | K63: 760401001 | Q63: РСО | R63: /Электроэнергетика/Передача ЭЭ/РСО | S63: Y
A64: 63 | B64: 2603 | C64: Ярославская область | H64: 26611514 | I64: ООО "ТранснефтьЭлектросетьСервис" | J64: 6311049306 | K64: 631101001 | L64: 19-10-2000 00:00:00 | Q64: РСО | R64: /Электроэнергетика/Передача ЭЭ/РСО | S64: Y
A65: 64 | B65: 2603 | C65: Ярославская область | H65: 26497668 | I65: ООО "Транснефтьэнерго" | J65: 7703552167 | K65: 772301001 | L65: 01-07-2009 00:00:00 | Q65: Нерегулируемый сбыт | R65: /Электроэнергетика/Сбыт ЭЭ/Нерегулируемый сбыт | S65: Y
A66: 65 | B66: 2603 | C66: Ярославская область | H66: 27805201 | I66: ООО "Трансэнергопром" | J66: 7731411714 | K66: 770501001 | L66: 08-08-2012 00:00:00 | Q66: Нерегулируемый сбыт | R66: /Электроэнергетика/Сбыт ЭЭ/Нерегулируемый сбыт | S66: Y
A67: 66 | B67: 2603 | C67: Ярославская область | H67: 28453584 | I67: ООО "Хуадянь-Тенинская ТЭЦ" | J67: 7604217961 | K67: 760401001 | L67: 30-01-2018 00:00:00 | Q67: Нерегулируемый сбыт :: Комбинированная выработка | R67: /Электроэнергетика/Сбыт ЭЭ/Нерегулируемый сбыт :: /Электроэнергетика/Производство ЭЭ/Комбинированная выработка | S67: Y
A68: 67 | B68: 2603 | C68: Ярославская область | H68: 28453584 | I68: ООО "Хуадянь-Тенинская ТЭЦ" | J68: 7604217961 | K68: 760401001 | L68: 30-01-2018 00:00:00 | Q68: Комбинированная выработка | R68: /Электроэнергетика/Производство ЭЭ/Комбинированная выработка | S68: Y
A69: 68 | B69: 2603 | C69: Ярославская область | H69: 28175700 | I69: ООО "Центрэнерго" | J69: 7703728269 | K69: 770301001 | Q69: Нерегулируемый сбыт | R69: /Электроэнергетика/Сбыт ЭЭ/Нерегулируемый сбыт | S69: Y
A70: 69 | B70: 2603 | C70: Ярославская область | H70: 26525063 | I70: ООО "ЭКО" | J70: 7607026637 | K70: 760701001 | Q70: РСО | R70: /Электроэнергетика/Передача ЭЭ/РСО | S70: Y
A71: 70 | B71: 2603 | C71: Ярославская область | H71: 30834504 | I71: ООО "Электросеть" | J71: 7606101137 | K71: 760601001 | Q71: РСО | R71: /Электроэнергетика/Передача ЭЭ/РСО | S71: Y
A72: 71 | B72: 2603 | C72: Ярославская область | H72: 26319509 | I72: ООО "Энергия" | J72: 7610059551 | K72: 761001001 | Q72: РСО | R72: /Электроэнергетика/Передача ЭЭ/РСО | S72: Y
A73: 72 | B73: 2603 | C73: Ярославская область | H73: 26483210 | I73: ООО "Энергия-1" | J73: 7605005021 | K73: 760501001 | Q73: РСО | R73: /Электроэнергетика/Передача ЭЭ/РСО | S73: Y
A74: 73 | B74: 2603 | C74: Ярославская область | H74: 28273905 | I74: ООО "ЭнергоСистемные Решения" | J74: 7604240713 | K74: 760401001 | Q74: РСО | R74: /Электроэнергетика/Передача ЭЭ/РСО | S74: Y
A75: 74 | B75: 2603 | C75: Ярославская область | H75: 27971145 | I75: ООО "Энергокомпания" | J75: 7612044470 | K75: 761201001 | Q75: РСО | R75: /Электроэнергетика/Передача ЭЭ/РСО | S75: Y
A76: 75 | B76: 2603 | C76: Ярославская область | H76: 28426311 | I76: ООО "Энергоресурс" | J76: 7602076842 | K76: 760201001 | L76: 05-02-2010 00:00:00 | Q76: РСО | R76: /Электроэнергетика/Передача ЭЭ/РСО | S76: Y
A77: 76 | B77: 2603 | C77: Ярославская область | H77: 31414561 | I77: ООО "Энергосбытовая компания "Горкунов" | J77: 5433970181 | K77: 543301001 | L77: 01-10-2019 00:00:00 | Q77: Нерегулируемый сбыт | R77: /Электроэнергетика/Сбыт ЭЭ/Нерегулируемый сбыт | S77: N
A78: 77 | B78: 2603 | C78: Ярославская область | H78: 28494405 | I78: ООО "Энергосистема" | J78: 7715887873 | K78: 770201001 | Q78: Нерегулируемый сбыт | R78: /Электроэнергетика/Сбыт ЭЭ/Нерегулируемый сбыт | S78: Y
A79: 78 | B79: 2603 | C79: Ярославская область | H79: 30940797 | I79: ООО "ЯрМК" | J79: 7602110395 | K79: 760201002 | Q79: РСО | R79: /Электроэнергетика/Передача ЭЭ/РСО | S79: Y
A80: 79 | B80: 2603 | C80: Ярославская область | H80: 31336299 | I80: ООО "Ярославль Энергосети" | J80: 7603071117 | K80: 760301001 | Q80: РСО | R80: /Электроэнергетика/Передача ЭЭ/РСО | S80: Y
A81: 80 | B81: 2603 | C81: Ярославская область | H81: 28797527 | I81: ООО «Энергопромсбыт» | J81: 7722781966 | K81: 772201001 | Q81: Нерегулируемый сбыт | R81: /Электроэнергетика/Сбыт ЭЭ/Нерегулируемый сбыт | S81: Y
A82: 81 | B82: 2603 | C82: Ярославская область | H82: 26809216 | I82: Общество с ограниченной ответственностью «Комплексэнергосервис» | J82: 7727688054 | K82: 770401001 | Q82: Нерегулируемый сбыт | R82: /Электроэнергетика/Сбыт ЭЭ/Нерегулируемый сбыт | S82: Y
A83: 82 | B83: 2603 | C83: Ярославская область | H83: 26483403 | I83: ПАО "Научно-производственное объединение Фильтры индустриальные газоочистные" | J83: 7609001719 | K83: 760901001 | Q83: РСО | R83: /Электроэнергетика/Передача ЭЭ/РСО | S83: Y
A84: 83 | B84: 2603 | C84: Ярославская область | H84: 26483377 | I84: ПАО "ОДК-Сатурн" | J84: 7610052644 | K84: 761001001 | Q84: Комбинированная выработка | R84: /Электроэнергетика/Производство ЭЭ/Комбинированная выработка | S84: Y
A85: 84 | B85: 2603 | C85: Ярославская область | H85: 26523308 | I85: ПАО "ТГК-2" | J85: 7606053324 | K85: 760601001 | Q85: Комбинированная выработка :: Некомбинированная выработка | R85: /Электроэнергетика/Производство ЭЭ/Комбинированная выработка :: /Электроэнергетика/Производство ЭЭ/Некомбинированная выработка | S85: Y
A86: 85 | B86: 2603 | C86: Ярославская область | H86: 26523308 | I86: ПАО "ТГК-2" | J86: 7606053324 | K86: 760601001 | Q86: Комбинированная выработка | R86: /Электроэнергетика/Производство ЭЭ/Комбинированная выработка | S86: Y
A87: 86 | B87: 2603 | C87: Ярославская область | H87: 26483170 | I87: ПАО "ТГК-2" | J87: 7606053324 | K87: 760631001 | Q87: Комбинированная выработка | R87: /Электроэнергетика/Производство ЭЭ/Комбинированная выработка | S87: Y
A88: 87 | B88: 2603 | C88: Ярославская область | H88: 26318874 | I88: ПАО "ТНС энерго Ярославль" | J88: 7606052264 | K88: 760601001 | Q88: ГП | R88: /Электроэнергетика/Сбыт ЭЭ/ГП | S88: Y
A89: 88 | B89: 2603 | C89: Ярославская область | H89: 27954259 | I89: ПАО "ФСК ЕЭС" | J89: 4716016979 | K89: 997450001 | Q89: РСО | R89: /Электроэнергетика/Передача ЭЭ/РСО | S89: Y
A90: 89 | B90: 2603 | C90: Ярославская область | H90: 26650304 | I90: ПАО "Ярославский ордена Ленина и ордена Октябрьской революции шинный завод" | J90: 7601001509 | K90: 760150001 | Q90: РСО | R90: /Электроэнергетика/Передача ЭЭ/РСО | S90: Y
A91: 90 | B91: 2603 | C91: Ярославская область | H91: 26483178 | I91: ПАО "Ярославский радиозавод" | J91: 7601000086 | K91: 760401001 | Q91: РСО | R91: /Электроэнергетика/Передача ЭЭ/РСО | S91: Y
A92: 91 | B92: 2603 | C92: Ярославская область | H92: 26525264 | I92: ПАО Группа компаний "ТНС энерго" | J92: 7709331020 | K92: 770201001 | Q92: Нерегулируемый сбыт | R92: /Электроэнергетика/Сбыт ЭЭ/Нерегулируемый сбыт | S92: Y
A93: 92 | B93: 2603 | C93: Ярославская область | H93: 26754796 | I93: Северная дирекция по энергообеспечению - структурное подразделение Трансэнерго - филиала ОАО "Российские железные дороги" | J93: 7708503727 | K93: 760445013 | Q93: РСО | R93: /Электроэнергетика/Передача ЭЭ/РСО | S93: Y
A94: 93 | B94: 2603 | C94: Ярославская область | H94: 26319515 | I94: ФКУ Исправительная колония № 3 УФСИН России по Ярославской области | J94: 7612010960 | K94: 761201001 | Q94: РСО | R94: /Электроэнергетика/Передача ЭЭ/РСО | S94: Y
A95: 94 | B95: 2603 | C95: Ярославская область | H95: 30849324 | I95: Филиал АО "Кордиант" в городе Ярославле (ЯШЗ) | J95: 7601001509 | K95: 760643002 | L95: 07-10-2016 00:00:00 | Q95: РСО | R95: /Электроэнергетика/Передача ЭЭ/РСО | S95: Y
A96: 95 | B96: 2603 | C96: Ярославская область | H96: 26319507 | I96: Филиал ОАО "Мостостройиндустрия" Завод № 50 | J96: 7708000794 | K96: 760302001 | Q96: РСО | R96: /Электроэнергетика/Передача ЭЭ/РСО | S96: Y
A97: 96 | B97: 2603 | C97: Ярославская область | H97: 26525054 | I97: Филиал ООО "Газпром трансгаз Ухта" - Мышкинское ЛПУМГ | J97: 1102024468 | K97: 761902001 | Q97: РСО | R97: /Электроэнергетика/Передача ЭЭ/РСО | S97: Y
A98: 97 | B98: 2603 | C98: Ярославская область | H98: 26525044 | I98: Филиал ПАО "МРСК Центра" - "Ярэнерго" | J98: 6901067107 | K98: 760602001 | Q98: РСО | R98: /Электроэнергетика/Передача ЭЭ/РСО | S98: Y
A99: 98 | B99: 2603 | C99: Ярославская область | H99: 26796079 | I99: Филиал ПАО "РусГидро" - "Каскад Верхневолжских ГЭС" | J99: 2460066195 | K99: 761002001 | L99: 22-03-2011 00:00:00 | Q99: Некомбинированная выработка | R99: /Электроэнергетика/Производство ЭЭ/Некомбинированная выработка | S99: Y
A100: 99 | B100: 2603 | C100: Ярославская область | H100: 26557735 | I100: Филиал ФГУП "ЖКУ РАН" Борок | J100: 7736111591 | K100: 762043001 | Q100: РСО | R100: /Электроэнергетика/Передача ЭЭ/РСО | S100: Y

Sheet REESTR_FIL (hidden)
A1: МР | B1: МО | C1: МО_ОКТМО | D1: МР | E1: ИМЯ ДИАПАЗОНА

Sheet REESTR_MO (hidden)
A1: МР | B1: МО | C1: МО_ОКТМО | D1: МО_ТИП | E1: МР | F1: ИМЯ ДИАПАЗОНА
A2: Большесельский муниципальный район | B2: Благовещенское сельское поселение | C2: 78603411 | D2: сельское поселение | E2: Большесельский муниципальный район | F2: MO_LIST_2
A3: Большесельский муниципальный район | B3: Большесельский муниципальный район | C3: 78603000 | D3: муниципальный район | E3: Борисоглебский муниципальный район | F3: MO_LIST_3
A4: Большесельский муниципальный район | B4: Большесельское сельское поселение | C4: 78603422 | D4: сельское поселение | E4: Брейтовский муниципальный район | F4: MO_LIST_4
A5: Большесельский муниципальный район | B5: Вареговское сельское поселение | C5: 78603427 | D5: сельское поселение | E5: Гаврилов-Ямский муниципальный район | F5: MO_LIST_5
A6: Борисоглебский муниципальный район | B6: Андреевское сельское поселение | C6: 78606422 | D6: сельское поселение | E6: Даниловский муниципальный район | F6: MO_LIST_6
A7: Борисоглебский муниципальный район | B7: Борисоглебский муниципальный район | C7: 78606000 | D7: муниципальный район | E7: Любимский муниципальный район | F7: MO_LIST_7
A8: Борисоглебский муниципальный район | B8: Борисоглебское сельское поселение | C8: 78606407 | D8: сельское поселение | E8: Мышкинский муниципальный район | F8: MO_LIST_8
A9: Борисоглебский муниципальный район | B9: Вощажниковское сельское поселение | C9: 78606410 | D9: сельское поселение | E9: Некоузский муниципальный район | F9: MO_LIST_9
A10: Борисоглебский муниципальный район | B10: Высоковское сельское поселение | C10: 78606415 | D10: сельское поселение | E10: Некрасовский муниципальный район | F10: MO_LIST_10
A11: Борисоглебский муниципальный район | B11: Инальцинское сельское поселение | C11: 78606405 | D11: сельское поселение | E11: Первомайский муниципальный район | F11: MO_LIST_11
A12: Брейтовский муниципальный район | B12: Брейтовский муниципальный район | C12: 78609000 | D12: муниципальный район | E12: Переславский муниципальный район | F12: MO_LIST_12
A13: Брейтовский муниципальный район | B13: Брейтовское сельское поселение | C13: 78609411 | D13: сельское поселение | E13: Пошехонский муниципальный район | F13: MO_LIST_13
A14: Брейтовский муниципальный район | B14: Гореловское сельское поселение | C14: 78609422 | D14: сельское поселение | E14: Ростовский муниципальный район | F14: MO_LIST_14
A15: Брейтовский муниципальный район | B15: Прозоровское сельское поселение | C15: 78609433 | D15: сельское поселение | E15: Рыбинский муниципальный район | F15: MO_LIST_15
A16: Гаврилов-Ямский муниципальный район | B16: Великосельское сельское поселение | C16: 78612405 | D16: сельское поселение | E16: Тутаевский муниципальный район | F16: MO_LIST_16
A17: Гаврилов-Ямский муниципальный район | B17: Гаврилов-Ямский муниципальный район | C17: 78612000 | D17: муниципальный район | E17: Угличский муниципальный район | F17: MO_LIST_17
A18: Гаврилов-Ямский муниципальный район | B18: Городское поселение г. Гаврилов-Ям | C18: 78612101 | D18: городское поселение, в состав которого входит город | E18: Ярославский муниципальный район | F18: MO_LIST_18
A19: Гаврилов-Ямский муниципальный район | B19: Заячье-Холмское сельское поселение | C19: 78612477 | D19: сельское поселение | E19: город Переславль-Залесский | F19: MO_LIST_19
A20: Гаврилов-Ямский муниципальный район | B20: Митинское сельское поселение | C20: 78612450 | D20: сельское поселение | E20: город Рыбинск | F20: MO_LIST_20
A21: Гаврилов-Ямский муниципальный район | B21: Шопшинское сельское поселение | C21: 78612490 | D21: сельское поселение | E21: город Ярославль | F21: MO_LIST_21
A22: Даниловский муниципальный район | B22: Городское поселение г. Данилов | C22: 78615101 | D22: городское поселение, в состав которого входит город
A23: Даниловский муниципальный район | B23: Даниловский муниципальный район | C23: 78615000 | D23: муниципальный район
A24: Даниловский муниципальный район | B24: Даниловское сельское поселение | C24: 78615435 | D24: сельское поселение
A25: Даниловский муниципальный район | B25: Дмитриевское сельское поселение | C25: 78615420 | D25: сельское поселение
A26: Даниловский муниципальный район | B26: Середское сельское поселение | C26: 78615470 | D26: сельское поселение
A27: Любимский муниципальный район | B27: Воскресенское сельское поселение | C27: 78618405 | D27: сельское поселение
A28: Любимский муниципальный район | B28: Городское поселение г. Любим | C28: 78618101 | D28: городское поселение, в состав которого входит город
A29: Любимский муниципальный район | B29: Ермаковское сельское поселение | C29: 78618410 | D29: сельское поселение
A30: Любимский муниципальный район | B30: Любимский муниципальный район | C30: 78618000 | D30: муниципальный район
A31: Любимский муниципальный район | B31: Осецкое сельское поселение | C31: 78618433 | D31: сельское поселение
A32: Мышкинский муниципальный район | B32: Городское поселение г. Мышкин | C32: 78621101 | D32: городское поселение, в состав которого входит город
A33: Мышкинский муниципальный район | B33: Мышкинский муниципальный район | C33: 78621000 | D33: муниципальный район
A34: Мышкинский муниципальный район | B34: Охотинское сельское поселение | C34: 78621430 | D34: сельское поселение
A35: Мышкинский муниципальный район | B35: Приволжское сельское поселение | C35: 78621415 | D35: сельское поселение
A36: Некоузский муниципальный район | B36: Веретейское сельское поселение | C36: 78623404 | D36: сельское поселение
A37: Некоузский муниципальный район | B37: Волжское сельское поселение | C37: 78623406 | D37: сельское поселение
A38: Некоузский муниципальный район | B38: Некоузский муниципальный район | C38: 78623000 | D38: муниципальный район
A39: Некоузский муниципальный район | B39: Некоузское сельское поселение | C39: 78623415 | D39: сельское поселение
A40: Некоузский муниципальный район | B40: Октябрьское сельское поселение | C40: 78623427 | D40: сельское поселение
A41: Некрасовский муниципальный район | B41: Бурмакино сельское поселение | C41: 78626409 | D41: сельское поселение
A42: Некрасовский муниципальный район | B42: Красный Профинтерн сельское поселение | C42: 78626444 | D42: сельское поселение
A43: Некрасовский муниципальный район | B43: Некрасовский муниципальный район | C43: 78626000 | D43: муниципальный район
A44: Некрасовский муниципальный район | B44: Некрасовское сельское поселение | C44: 78626457 | D44: сельское поселение
A45: Первомайский муниципальный район | B45: Городское поселение п.Пречистое | C45: 78629151 | D45: городское поселение, в состав которого входит поселок
A46: Первомайский муниципальный район | B46: Кукобойское сельское поселение | C46: 78629435 | D46: сельское поселение
A47: Первомайский муниципальный район | B47: Первомайский муниципальный район | C47: 78629000 | D47: муниципальный район
A48: Первомайский муниципальный район | B48: Пречистенское сельское поселение | C48: 78629450 | D48: сельское поселение
A49: Переславский муниципальный район | B49: Нагорьевское сельское поселение | C49: 78632452 | D49: сельское поселение
A50: Переславский муниципальный район | B50: Переславский муниципальный район | C50: 78632000 | D50: муниципальный район
A51: Переславский муниципальный район | B51: Пригородное сельское поселение | C51: 78632455 | D51: сельское поселение
A52: Переславский муниципальный район | B52: Рязанцевское сельское поселение | C52: 78632468 | D52: сельское поселение
A53: Пошехонский муниципальный район | B53: Белосельское сельское поселение | C53: 78634404 | D53: сельское поселение
A54: Пошехонский муниципальный район | B54: Городское поселение Пошехонье | C54: 78634101 | D54: городское поселение, в состав которого входит город
A55: Пошехонский муниципальный район | B55: Ермаковское сельское поселение | C55: 78634428 | D55: сельское поселение
A56: Пошехонский муниципальный район | B56: Кременевское сельское поселение | C56: 78634460 | D56: сельское поселение
A57: Пошехонский муниципальный район | B57: Пошехонский муниципальный район | C57: 78634000 | D57: муниципальный район
A58: Пошехонский муниципальный район | B58: Пригородное сельское поселение | C58: 78634436 | D58: сельское поселение
A59: Ростовский муниципальный район | B59: Городское поселение г.Ростов | C59: 78637101 | D59: городское поселение, в состав которого входит город
A60: Ростовский муниципальный район | B60: Ишня сельское поселение | C60: 78637412 | D60: сельское поселение
A61: Ростовский муниципальный район | B61: Петровское сельское поселение | C61: 78637441 | D61: сельское поселение
A62: Ростовский муниципальный район | B62: Поречье-Рыбное сельское поселение | C62: 78637442 | D62: сельское поселение
A63: Ростовский муниципальный район | B63: Ростовский муниципальный район | C63: 78637000 | D63: муниципальный район
A64: Ростовский муниципальный район | B64: Семибратово сельское поселение | C64: 78637447 | D64: сельское поселение
A65: Рыбинский муниципальный район | B65: Арефинское сельское поселение | C65: 78640410 | D65: сельское поселение
A66: Рыбинский муниципальный район | B66: Волжское сельское поселение | C66: 78640415 | D66: сельское поселение
A67: Рыбинский муниципальный район | B67: Глебовское сельское поселение | C67: 78640443 | D67: сельское поселение
A68: Рыбинский муниципальный район | B68: Городское поселение Песочное | C68: 78640455 | D68: сельское поселение
A69: Рыбинский муниципальный район | B69: Каменниковское сельское поселение | C69: 78640425 | D69: сельское поселение
A70: Рыбинский муниципальный район | B70: Назаровское сельское поселение | C70: 78640430 | D70: сельское поселение
A71: Рыбинский муниципальный район | B71: Огарковское сельское поселение | C71: 78640440 | D71: сельское поселение
A72: Рыбинский муниципальный район | B72: Октябрьское сельское поселение | C72: 78640420 | D72: сельское поселение
A73: Рыбинский муниципальный район | B73: Покровское сельское поселение | C73: 78640435 | D73: сельское поселение
A74: Рыбинский муниципальный район | B74: Рыбинский муниципальный район | C74: 78640000 | D74: муниципальный район
A75: Рыбинский муниципальный район | B75: Судоверфское сельское поселение | C75: 78640452 | D75: сельское поселение
A76: Рыбинский муниципальный район | B76: Тихменевское сельское поселение | C76: 78640447 | D76: сельское поселение
A77: Тутаевский муниципальный район | B77: Артемьевское сельское поселение | C77: 78643405 | D77: сельское поселение
A78: Тутаевский муниципальный район | B78: Городское поселение г.Тутаев | C78: 78643101 | D78: городское поселение, в состав которого входит город
A79: Тутаевский муниципальный район | B79: Константиновское сельское поселение | C79: 78643420 | D79: сельское поселение
A80: Тутаевский муниципальный район | B80: Левобережное сельское поселение | C80: 78643460 | D80: сельское поселение
A81: Тутаевский муниципальный район | B81: Тутаевский муниципальный район | C81: 78643000 | D81: муниципальный район
A82: Тутаевский муниципальный район | B82: Чебаковское сельское поселение | C82: 78643450 | D82: сельское поселение
A83: Угличский муниципальный район | B83: Головинское сельское поселение | C83: 78646440 | D83: сельское поселение
A84: Угличский муниципальный район | B84: Городское поселение г.Углич | C84: 78646101 | D84: городское поселение, в состав которого входит город
A85: Угличский муниципальный район | B85: Ильинское сельское поселение | C85: 78646420 | D85: сельское поселение
A86: Угличский муниципальный район | B86: Отрадновское сельское поселение | C86: 78646475 | D86: сельское поселение
A87: Угличский муниципальный район | B87: Слободское сельское поселение | C87: 78646410 | D87: сельское поселение
A88: Угличский муниципальный район | B88: Угличский муниципальный район | C88: 78646000 | D88: муниципальный район
A89: Угличский муниципальный район | B89: Улейминское сельское поселение | C89: 78646480 | D89: сельское поселение
A90: Ярославский муниципальный район | B90: Городское поселение п. Лесная Поляна | C90: 78650155 | D90: городское поселение, в состав которого входит поселок
A91: Ярославский муниципальный район | B91: Заволжское сельское поселение | C91: 78650410 | D91: сельское поселение
A92: Ярославский муниципальный район | B92: Ивняковское сельское поселение | C92: 78650455 | D92: сельское поселение
A93: Ярославский муниципальный район | B93: Карабихское сельское поселение | C93: 78650430 | D93: сельское поселение
A94: Ярославский муниципальный район | B94: Кузнечихинское сельское поселение | C94: 78650435 | D94: сельское поселение
A95: Ярославский муниципальный район | B95: Курбское сельское поселение | C95: 78650440 | D95: сельское поселение
A96: Ярославский муниципальный район | B96: Некрасовское сельское поселение | C96: 78650470 | D96: сельское поселение
A97: Ярославский муниципальный район | B97: Туношенское сельское поселение | C97: 78650495 | D97: сельское поселение
A98: Ярославский муниципальный район | B98: Ярославский муниципальный район | C98: 78650000 | D98: муниципальный район
A99: город Переславль-Залесский | B99: город Переславль-Залесский | C99: 78705000 | D99: городской округ
A100: город Рыбинск | B100: город Рыбинск | C100: 78715000 | D100: городской округ
A101: город Ярославль | B101: город Ярославль | C101: 78701000 | D101: городской округ

Sheet REESTR_EGRUL (hidden)
B1: ORG_FULL_NAME | C1: ORG_NAME | D1: OGRN | E1: INN | F1: KPP | G1: REG_DATE | H1: TERMINATE_DATE | I1: INCORRECT_DATE | J1: REGION_ID | K1: REGION_NAME | L1: ADDRESS
A2: 1 | B2: АКЦИОНЕРНОЕ ОБЩЕСТВО "СУДОСТРОИТЕЛЬНЫЙ ЗАВОД "ВЫМПЕЛ" | C2: АО "ССЗ "ВЫМПЕЛ" | D2: 1027601107082 | E2: 7610015674 | F2: 761001001 | G2: 29-08-2002 00:00:00 | J2: 2603 | K2: Ярославская область | L2: ОБЛАСТЬ ЯРОСЛАВСКАЯ, РАЙОН РЫБИНСКИЙ, ГОРОД РЫБИНСК, УЛИЦА НОВАЯ, 4

Sheet modfrmRegion (hidden)

Sheet modfrmReestr (hidden)

Sheet modfrmFindEGRUL (hidden)

Sheet modfrmCheckUpdates (hidden)

Sheet modReestr (hidden)

Sheet modUpdTemplMain (hidden)

Sheet modHyperlink (hidden)

Sheet modClassifierValidate (hidden)
